Workbook

Sheet COMPARATIVO MES ANT - MES ACT
B1: NOMBRE EJECUCIÓN PRESUPUESTAL | M1: CÓDIGO 09-FT-030
B3: TIPO DE DOCUMENTO FORMATO | H3: PROCESO APOYO | M3: VERSIÓN 003
A5: COMPARATIVO MES ANTERIOR 2.021 - MES ACTUAL 2.021
A6: SEDE | B6: MEGACENTRO | C6: CUBA | D6: TORRE 3 | E6: TORRE 2 | F6: ICONO | G6: OVAL | H6: CASA ESPECIALISTAS | I6: LA REBECA | J6: CARTAGO | K6: ÁLAMOS | L6: ARMENIA | M6: MANIZALES
A7: CAPEX Y/O ACTIVOS FIJOS MES ACTUAL | B7: =MEGACENTRO!AP11 -> 0 | C7: =CUBA!AH11 -> 0 | D7: ='TORRE 3'!N11 -> 0 | E7: ='TORRE 2'!I10 -> 0 | F7: =ICONO!R10 -> 0 | G7: =OVAL!I10 -> 0 | H7: =+'CASA ESPECIALISTAS'!I10 -> 0 | I7: =+'LA REBECA'!V10 -> 0 | J7: =+CARTAGO!I10 -> 0 | K7: =ÁLAMOS!F10 -> 0 | L7: =ARMENIA!K10 -> 0 | M7: =+MANIZALES!N10 -> 0
A8: CAPEX Y/O ACTIVOS FIJOS MES ANTERIOR | B8: =MEGACENTRO!AP12 -> 0 | C8: =CUBA!AH12 -> 0 | D8: ='TORRE 3'!N12 -> 0 | E8: ='TORRE 2'!I11 -> 0 | F8: =ICONO!R11 -> 0 | G8: =OVAL!I11 -> 0 | H8: =+'CASA ESPECIALISTAS'!I11 -> 0 | I8: =+'LA REBECA'!V11 -> 0 | J8: =+CARTAGO!I11 -> 0 | K8: =ÁLAMOS!F11 -> 0 | L8: =ARMENIA!K11 -> 0 | M8: =+MANIZALES!N11 -> 0
A9: DIFERENCIA | B9: =B7-B8 -> 0 | C9: =C7-C8 -> 0 | D9: 0 | E9: 0 | F9: 0 | G9: 0 | H9: 0 | I9: 0 | J9: 0 | K9: 0 | L9: 0 | M9: 0
A11: ADECUACIONES MES ACTUAL | B11: =MEGACENTRO!AP19 -> 0 | C11: =CUBA!AH19 -> 0 | D11: ='TORRE 3'!N19 -> 0 | E11: ='TORRE 2'!I18 -> 0 | F11: =ICONO!R18 -> 0 | G11: =OVAL!I18 -> 0 | H11: =+'CASA ESPECIALISTAS'!I18 -> 0 | I11: =+'LA REBECA'!V18 -> 0 | J11: =+CARTAGO!I18 -> 0 | K11: =ÁLAMOS!F18 -> 0 | L11: =ARMENIA!K18 -> 0 | M11: =+MANIZALES!N18 -> 0
A12: ADECUACIONES MES ANTERIOR | B12: =+MEGACENTRO!AP20 -> 0 | C12: =CUBA!AH20 -> 0 | D12: ='TORRE 3'!N20 -> 0 | E12: ='TORRE 2'!I19 -> 0 | F12: =ICONO!R19 -> 0 | G12: =OVAL!I19 -> 0 | H12: =+'CASA ESPECIALISTAS'!I19 -> 0 | I12: =+'LA REBECA'!V19 -> 0 | J12: =+CARTAGO!I19 -> 0 | K12: =ÁLAMOS!F19 -> 0 | L12: =ARMENIA!K19 -> 0 | M12: =+MANIZALES!N19 -> 0
A13: DIFERENCIA | B13: =B11-B12 -> 0 | C13: 0 | D13: 0 | E13: 0 | F13: 0 | G13: 0 | H13: 0 | I13: 0 | J13: 0 | K13: 0 | L13: 0 | M13: 0
A15: GENERALES MTO REPARCIONES MES ACTUAL | B15: =MEGACENTRO!AP31 -> 0 | C15: =CUBA!AH29 -> 0 | D15: ='TORRE 3'!N35 -> 0 | E15: ='TORRE 2'!I28 -> 0 | F15: =ICONO!R38 -> 0 | G15: =OVAL!I31 -> 0 | H15: =+'CASA ESPECIALISTAS'!I26 -> 0 | I15: =+'LA REBECA'!V25 -> 0 | J15: =+CARTAGO!I26 -> 0 | K15: =ÁLAMOS!F32 -> 0 | L15: =ARMENIA!K29 -> 0 | M15: =+MANIZALES!N27 -> 0
A16: GENERALES MTO REPARCIONES MES ANTERIOR | B16: =MEGACENTRO!AP32 -> 0 | C16: =CUBA!AH30 -> 0 | D16: ='TORRE 3'!N36 -> 0 | E16: ='TORRE 2'!I29 -> 0 | F16: =ICONO!R39 -> 0 | G16: =OVAL!I32 -> 0 | H16: =+'CASA ESPECIALISTAS'!I27 -> 0 | I16: =+'LA REBECA'!V26 -> 0 | J16: =+CARTAGO!I27 -> 0 | K16: =ÁLAMOS!F33 -> 0 | L16: =ARMENIA!K30 -> 0 | M16: =+MANIZALES!N28 -> 0
A17: DIFERENCIA | B17: =B15-B16 -> 0 | C17: 0 | D17: 0 | E17: 0 | F17: 0 | G17: 0 | H17: 0 | I17: 0 | J17: 0 | K17: 0 | L17: 0 | M17: 0
A19: SUMINISTROS E INSUMOS MES ACTUAL | B19: =MEGACENTRO!AP43 -> 0 | C19: =CUBA!AH39 -> 0 | D19: 0 | E19: 0 | F19: 0 | G19: 0 | H19: 0 | I19: 0 | J19: 0 | L19: =+ARMENIA!K37 -> 0 | M19: 0
A20: SUMINISTROS E INSUMOS MES ANTERIOR | B20: =MEGACENTRO!AP44 -> 0 | C20: =CUBA!AH40 -> 0 | D20: 0 | E20: 0 | F20: 0 | G20: 0 | H20: 0 | I20: 0 | J20: 0 | L20: =+ARMENIA!K38 -> 0 | M20: 0
A21: DIFERENCIA | B21: =B19-B20 -> 0 | C21: 0 | D21: 0 | E21: 0 | F21: 0 | G21: 0 | H21: 0 | I21: 0 | J21: 0 | K21: 0 | L21: 0 | M21: 0
A23: HONORARIOS MES ACTUAL | B23: =MEGACENTRO!AP245 -> 0 | C23: =CUBA!AH47 -> 0 | D23: 0 | E23: 0 | F23: 0 | G23: 0 | H23: 0 | I23: 0 | J23: 0 | K23: 0 | L23: 0 | M23: 0
A24: HONORARIOS MES ANTERIOR | B24: =MEGACENTRO!AP246 -> 0 | C24: =CUBA!AH48 -> 0 | D24: 0 | E24: 0 | F24: 0 | G24: 0 | H24: 0 | I24: 0 | J24: 0 | K24: 0 | L24: 0 | M24: 0
A25: DIFERENCIA | B25: =B23-B24 -> 0 | C25: 0 | D25: 0 | E25: 0 | F25: 0 | G25: 0 | H25: 0 | I25: 0 | J25: 0 | K25: 0 | L25: 0 | M25: 0
A27: NÓMINA MES ACTUAL | B27: =+SUM('CONSOLIDADO POR AREA'!B85:U85) -> 0 | C27: =+SUM('CONSOLIDADO POR AREA'!B86:U86) -> 0 | D27: 0 | E27: 0 | F27: 0 | G27: 0 | H27: 0 | I27: 0 | J27: 0 | K27: 0 | L27: 0 | M27: 0
A28: NÓMINA MES ANTERIOR | B28: 0 | C28: 0 | D28: 0 | E28: 0 | F28: 0 | G28: 0 | H28: 0 | I28: 0 | J28: 0 | K28: 0 | L28: 0 | M28: 0
A29: DIFERENCIA | B29: =B27-B28 -> 0 | C29: 0 | D29: 0 | E29: 0 | F29: 0 | G29: 0 | H29: 0 | I29: 0 | J29: 0 | K29: 0 | L29: 0 | M29: 0
A31: SERVICIOS PUBLICOS MES ACTUAL | B31: ='SERVICIOS PUBLICOS MEGACENTRO'!C24+'SERVICIOS PUBLICOS MEGACENTRO'!G24+'SERVICIOS PUBLICOS MEGACENTRO'!C41+'SERVICIOS PUBLICOS MEGACENTRO'!G41+'SERVICIOS PUBLICOS MEGACENTRO'!C65+'SERVICIOS PUBLICOS MEGACENTRO'!G65 -> 0 | C31: ='SERVICIOS PUBLICOS CUBA'!D25+'SERVICIOS PUBLICOS CUBA'!H25+'SERVICIOS PUBLICOS CUBA'!D43+'SERVICIOS PUBLICOS CUBA'!H43+'SERVICIOS PUBLICOS CUBA'!D63+'SERVICIOS PUBLICOS CUBA'!H63 -> 0 | D31: 0 | E31: 0 | F31: 0 | G31: 0 | H31: 0 | I31: 0 | J31: 0 | K31: 0 | L31: 0 | M31: 0
A32: SERVICIOS PUBLICOS MES ANTERIOR | B32: 0 | C32: 0 | D32: 0 | E32: 0 | F32: 0 | G32: 0 | H32: 0 | I32: 0 | J32: 0 | K32: 0 | L32: 0 | M32: 0
A33: DEFERENCIA | B33: =B31-B32 -> 0 | C33: 0 | D33: 0 | E33: 0 | F33: 0 | G33: 0 | H33: 0 | I33: 0 | J33: 0 | K33: 0 | L33: 0 | M33: 0
A35: CONSUMO REAL NOTIFICADOS POR FARMACIA MES ACTUAL | B35: =+SUM('CONSOLIDADO POR AREA'!B69:U69) -> 0 | C35: =+SUM('CONSOLIDADO POR AREA'!B70:U70) -> 0 | D35: 0 | E35: 0 | F35: 0 | G35: 0 | H35: 0 | I35: 0 | J35: 0 | K35: 0 | L35: 0 | M35: 0
A36: CONSUMO REAL NOTIFICADOS POR FARMACIA MES ANTERIOR | B36: 0 | C36: 0 | D36: 0 | E36: 0 | F36: 0 | G36: 0 | H36: 0 | I36: 0 | J36: 0 | K36: 0 | L36: 0 | M36: 0
A37: DIFERENCIA | B37: =B35-B36 -> 0 | C37: 0 | D37: 0 | E37: 0 | F37: 0 | G37: 0 | H37: 0 | I37: 0 | J37: 0 | K37: 0 | L37: 0 | M37: 0
A39: TOTAL MES ACTUAL | B39: =B7+B11+B15+B19+B23+B27+B31+B35 -> 0 | C39: =C7+C11+C15+C19+C23+C27+C31+C35 -> 0 | D39: 0 | E39: 0 | F39: 0 | G39: 0 | H39: 0 | I39: 0 | J39: 0 | K39: 0 | L39: 0 | M39: 0
A40: TOTAL MES ANTERIOR | B40: =B8+B12+B16+B20+B24+B28+B32+B36 -> 0 | C40: =C8+C12+C16+C20+C24+C28+C32+C36 -> 0 | D40: 0 | E40: 0 | F40: 0 | G40: 0 | H40: 0 | I40: 0 | J40: 0 | K40: 0 | L40: 0 | M40: 0
A41: DIFERENCIA | B41: =B39-B40 -> 0 | C41: 0 | D41: 0 | E41: 0 | F41: 0 | G41: 0 | H41: 0 | I41: 0 | J41: 0 | K41: 0 | L41: 0 | M41: 0
A46: DATOS SOLO INFORMATIVOS
A47: COMPRAS LEGALIZADAS EN CONTABILIDAD (INSUMOS DURANTE EL MES)
A48: COMPRA INSUMOS MES ACTUAL | B48: ='INSUMOS MEGACENTRO'!D38 -> 0 | C48: ='INSUMOS CUBA'!D10 -> 0 | D48: 0 | E48: 0 | F48: 0 | G48: 0 | K48: 0 | L48: 0 | M48: 0
A49: COMPRA INSUMOS MES ANTERIOR | B49: ='INSUMOS MEGACENTRO'!C38 -> 0 | C49: ='INSUMOS CUBA'!C10 -> 0 | D49: 0 | E49: 0 | F49: 0 | G49: 0 | K49: 0 | L49: 0 | M49: 0
A50: DIFERENCIA | B50: =B48-B49 -> 0 | C50: 0 | D50: 0 | E50: 0 | F50: 0 | G50: 0 | K50: 0 | L50: 0 | M50: 0
A52: HEMODINAMIA MES ACTUAL | B52: =HEMODINAMIA!D13 -> 0 | C52: 0 | D52: 0 | E52: 0 | F52: 0 | G52: 0 | K52: 0 | L52: 0 | M52: 0
A53: HEMODINAMIA MES ANTERIOR | B53: =HEMODINAMIA!C13 -> 0 | C53: 0 | D53: 0 | E53: 0 | F53: 0 | G53: 0 | K53: 0 | L53: 0 | M53: 0
A54: DIFERENCIA | B54: =B52-B53 -> 0 | C54: 0 | D54: 0 | E54: 0 | F54: 0 | G54: 0 | K54: 0 | L54: 0 | M54: 0
A56: OSTEOSINTESIS MES ACTUAL | B56: =OSTEOSINTESIS!D13 -> 0 | C56: 0 | D56: 0 | E56: 0 | F56: 0 | G56: 0 | K56: 0 | L56: 0 | M56: 0
A57: OSTEOSINTESIS MES ANTERIOR | B57: =OSTEOSINTESIS!C13 -> 0 | C57: 0 | D57: 0 | E57: 0 | F57: 0 | G57: 0 | K57: 0 | L57: 0 | M57: 0
A58: DEFERENCIA | B58: =B56-B57 -> 0 | C58: 0 | D58: 0 | E58: 0 | F58: 0 | G58: 0 | K58: 0 | L58: 0 | M58: 0

Sheet CONSOLIDADO POR AREA
B1: NOMBRE EJECUCIÓN PRESUPUESTAL | U1: CÓDIGO 09-FT-030
B3: TIPO DE DOCUMENTO FORMATO | K3: PROCESO APOYO | U3: VERSIÓN 003
A5: CAPEX Y/O ACTIVOS FIJOS
A6: SEDE | B6: CONSULTA | C6: HOSPITALIZACIÓN | D6: TRANSF - PATOLOG - UCI ADULTOS - UCI CUBA | E6: UCI PEDIATRICA - NEONATOS - PARTOS | F6: CIRUGIA | G6: URGENCIAS | H6: ONCOLOGIA | I6: FARMACIA | J6: MTTO | K6: SISTEMAS | L6: BIOTECNOLOGIA | M6: FACT Y CTAS MEDICAS | N6: T. HUMANO - S. OCUPACIONAL | O6: MERCADEO Y SIAU | P6: FINANCIERA | Q6: DIR MEDICA / CIENTIFICA | R6: DIR ADMINISTRATIVA | S6: PROYECTOS | T6: CALIDAD | U6: GERENCIA
A7: CUBA | B7: =CUBA!C11 -> 0 | C7: =CUBA!E11 -> 0 | D7: =CUBA!G11 -> 0 | E7: 0 | F7: =CUBA!I11 -> 0 | G7: 0 | H7: 0 | I7: =CUBA!K11 -> 0 | J7: =CUBA!M11 -> 0 | K7: =CUBA!O11 -> 0 | L7: =CUBA!Q11 -> 0 | M7: =CUBA!S11 -> 0 | N7: =CUBA!U11 -> 0 | O7: =CUBA!W11 -> 0 | P7: =CUBA!Y11 -> 0 | Q7: =CUBA!AA11 -> 0 | R7: =CUBA!AC11 -> 0 | S7: 0 | T7: =CUBA!AE11 -> 0 | U7: =CUBA!AG11 -> 0
A8: MEGACENTRO | B8: =MEGACENTRO!C11 -> 0 | C8: =MEGACENTRO!E11 -> 0 | D8: =MEGACENTRO!G11 -> 0 | E8: =MEGACENTRO!I11 -> 0 | F8: =MEGACENTRO!K11 -> 0 | G8: =MEGACENTRO!M11 -> 0 | H8: =+MEGACENTRO!O11 -> 0 | I8: =MEGACENTRO!Q11 -> 0 | J8: =MEGACENTRO!S11 -> 0 | K8: =MEGACENTRO!U11 -> 0 | L8: =MEGACENTRO!W11 -> 0 | M8: =MEGACENTRO!Y11 -> 0 | N8: =MEGACENTRO!AA11 -> 0 | O8: =MEGACENTRO!AC11 -> 0 | P8: =MEGACENTRO!AE11 -> 0 | Q8: =MEGACENTRO!AG11 -> 0 | R8: =MEGACENTRO!AI11 -> 0 | S8: =MEGACENTRO!AK11 -> 0 | T8: =MEGACENTRO!AM11 -> 0 | U8: =MEGACENTRO!AO11 -> 0
A9: TORRE 3 | B9: ='TORRE 3'!C11 -> 0 | C9: =+'TORRE 3'!E11+'TORRE 3'!G11 -> 0 | D9: 0 | E9: =+'TORRE 3'!I11+'TORRE 3'!K11 -> 0 | F9: =+'TORRE 3'!M11 -> 0 | G9: 0 | H9: 0 | I9: 0 | J9: 0 | K9: 0 | L9: 0 | M9: 0 | N9: 0 | O9: 0 | P9: 0 | Q9: 0 | R9: 0 | S9: 0 | T9: 0 | U9: 0
A10: OVAL | B10: =OVAL!H10 -> 0 | C10: 0 | D10: 0 | E10: 0 | F10: 0 | G10: 0 | H10: 0 | I10: 0 | J10: 0 | K10: 0 | L10: 0 | M10: 0 | N10: 0 | O10: 0 | P10: 0 | Q10: 0 | R10: 0 | S10: 0 | T10: 0 | U10: 0
A11: TORRE 2 | B11: ='TORRE 2'!H10 -> 0 | C11: 0 | D11: 0 | E11: 0 | F11: 0 | G11: 0 | H11: 0 | I11: 0 | J11: 0 | K11: 0 | L11: 0 | M11: 0 | N11: 0 | O11: 0 | P11: 0 | Q11: 0 | R11: 0 | S11: 0 | T11: 0 | U11: 0
A12: ICONO | B12: =ICONO!C10 -> 0 | C12: 0 | D12: 0 | E12: 0 | F12: 0 | G12: 0 | H12: 0 | I12: 0 | J12: 0 | K12: 0 | L12: 0 | M12: 0 | N12: =+ICONO!E10 -> 0 | O12: =+ICONO!G10 -> 0 | P12: =+ICONO!I10 -> 0 | Q12: 0 | R12: =+ICONO!O10 -> 0 | S12: =+ICONO!M10 -> 0 | T12: =+ICONO!K10 -> 0 | U12: =+ICONO!Q10 -> 0
A13: CASA ESPECIALISTAS | B13: =+'CASA ESPECIALISTAS'!H10 -> 0 | C13: 0 | D13: 0 | E13: 0 | F13: 0 | G13: 0 | H13: 0 | I13: 0 | J13: 0 | K13: 0 | L13: 0 | M13: 0 | N13: 0 | O13: 0 | P13: 0 | Q13: 0 | R13: 0 | S13: 0 | T13: 0 | U13: 0
A14: CARTAGO | B14: =+CARTAGO!H10 -> 0 | C14: 0 | D14: 0 | E14: 0 | F14: 0 | G14: 0 | H14: 0 | I14: 0 | J14: 0 | K14: 0 | L14: 0 | M14: 0 | N14: 0 | O14: 0 | P14: 0 | Q14: 0 | R14: 0 | S14: 0 | T14: 0 | U14: 0
A15: LA REBECA | B15: =+'LA REBECA'!C10 -> 0 | C15: 0 | D15: 0 | E15: 0 | F15: =+'LA REBECA'!E10 -> 0 | G15: 0 | H15: 0 | I15: 0 | J15: 0 | K15: 0 | L15: 0 | M15: 0 | N15: =+'LA REBECA'!G10 -> 0 | O15: =+'LA REBECA'!I10 -> 0 | P15: =+'LA REBECA'!K10 -> 0 | Q15: =+'LA REBECA'!Q10 -> 0 | R15: =+'LA REBECA'!S10 -> 0 | S15: =+'LA REBECA'!O10 -> 0 | T15: =+'LA REBECA'!M10 -> 0 | U15: =+'LA REBECA'!U10 -> 0
A16: ÁLAMOS | B16: =ÁLAMOS!C10 -> 0 | C16: 0 | D16: 0 | E16: 0 | F16: 0 | G16: 0 | H16: 0 | I16: 0 | J16: 0 | K16: 0 | L16: 0 | M16: =ÁLAMOS!E10 -> 0 | N16: 0 | O16: 0 | P16: 0 | Q16: 0 | R16: 0 | S16: 0 | T16: 0 | U16: 0
A17: ARMENIA | B17: =+ARMENIA!H10 -> 0 | C17: 0 | D17: 0 | E17: 0 | F17: 0 | G17: 0 | H17: =+ARMENIA!J10 -> 0 | I17: 0 | J17: 0 | K17: 0 | L17: 0 | M17: 0 | N17: 0 | O17: 0 | P17: 0 | Q17: 0 | R17: 0 | S17: 0 | T17: 0 | U17: 0
A18: MANIZALES | B18: =+MANIZALES!C10 -> 0 | C18: 0 | D18: 0 | E18: 0 | F18: =+MANIZALES!I10 -> 0 | G18: 0 | H18: =+MANIZALES!M10 -> 0 | I18: =+MANIZALES!G10 -> 0 | J18: 0 | K18: 0 | L18: 0 | M18: =+MANIZALES!K10 -> 0 | N18: =+MANIZALES!E10 -> 0 | O18: 0 | P18: 0 | Q18: 0 | R18: 0 | S18: 0 | T18: 0 | U18: 0
A19: TOTAL | B19: =SUM(B7:B18) -> 0 | C19: =SUM(C7:C18) -> 0 | D19: =SUM(D7:D18) -> 0 | E19: 0 | F19: 0 | G19: 0 | H19: 0 | I19: 0 | J19: 0 | K19: 0 | L19: 0 | M19: 0 | N19: 0 | O19: 0 | P19: 0 | Q19: 0 | R19: 0 | S19: 0 | T19: 0 | U19: 0
A22: ADECUACIONES E INSTALACIONES
A23: SEDE | B23: CONSULTA | C23: HOSPITALIZ | D23: TRANSF - PATOLOG - UCI ADULTOS - UCI CUBA | E23: UCI PEDIATRICA - NEONATOS - PARTOS | F23: CIRUGIA | G23: URGENCIAS | H23: ONCOLOGIA | I23: FARMACIA | J23: MTTO | K23: SISTEMAS | L23: BIOTECNOLOGIA | M23: FACT Y CTAS MEDICAS | N23: T. HUMANO - S. OCUPACIONAL | O23: MERCADEO Y SIAU | P23: FINANCIERA | Q23: DIR MEDICA / CIENTIFICA | R23: DIR ADMINISTRATIVA | S23: PROYECTOS | T23: CALIDAD | U23: GERENCIA
A24: CUBA | B24: =CUBA!C19 -> 0 | C24: =CUBA!E19 -> 0 | D24: =CUBA!G19 -> 0 | E24: 0 | F24: =CUBA!I19 -> 0 | G24: 0 | H24: 0 | I24: =CUBA!K19 -> 0 | J24: =CUBA!M19 -> 0 | K24: =CUBA!O19 -> 0 | L24: =CUBA!Q19 -> 0 | M24: =CUBA!S19 -> 0 | N24: =CUBA!U19 -> 0 | O24: =CUBA!W19 -> 0 | P24: =CUBA!Y19 -> 0 | Q24: =CUBA!AA19 -> 0 | R24: =CUBA!AC19 -> 0 | S24: 0 | T24: =CUBA!AE19 -> 0 | U24: =CUBA!AG19 -> 0
A25: MEGACENTRO | B25: =MEGACENTRO!C19 -> 0 | C25: =MEGACENTRO!E19 -> 0 | D25: =MEGACENTRO!G19 -> 0 | E25: =MEGACENTRO!I19 -> 0 | F25: =MEGACENTRO!K19 -> 0 | G25: =MEGACENTRO!M19 -> 0 | H25: =+MEGACENTRO!O19 -> 0 | I25: =MEGACENTRO!Q19 -> 0 | J25: =MEGACENTRO!S19 -> 0 | K25: =MEGACENTRO!U19 -> 0 | L25: =MEGACENTRO!W19 -> 0 | M25: =MEGACENTRO!Y19 -> 0 | N25: =MEGACENTRO!AA19 -> 0 | O25: =MEGACENTRO!AC19 -> 0 | P25: =MEGACENTRO!AE19 -> 0 | Q25: =MEGACENTRO!AG19 -> 0 | R25: =MEGACENTRO!AI19 -> 0 | S25: =MEGACENTRO!AK19 -> 0 | T25: =MEGACENTRO!AM19 -> 0 | U25: =MEGACENTRO!AO19 -> 0
A26: TORRE 3 | B26: ='TORRE 3'!C19 -> 0 | C26: =+'TORRE 3'!E19+'TORRE 3'!G19 -> 0 | D26: 0 | E26: =+'TORRE 3'!I19+'TORRE 3'!K19 -> 0 | F26: =+'TORRE 3'!M19 -> 0 | G26: 0 | H26: 0 | I26: 0 | J26: 0 | K26: 0 | L26: 0 | M26: 0 | N26: 0 | O26: 0 | P26: 0 | Q26: 0 | R26: 0 | S26: 0 | T26: 0 | U26: 0
A27: OVAL | B27: =OVAL!H18 -> 0 | C27: 0 | D27: 0 | E27: 0 | F27: 0 | G27: 0 | H27: 0 | I27: 0 | J27: 0 | K27: 0 | L27: 0 | M27: 0 | N27: 0 | O27: 0 | P27: 0 | Q27: 0 | R27: 0 | S27: 0 | T27: 0 | U27: 0
A28: TORRE 2 | B28: ='TORRE 2'!H18 -> 0 | C28: 0 | D28: 0 | E28: 0 | F28: 0 | G28: 0 | H28: 0 | I28: 0 | J28: 0 | K28: 0 | L28: 0 | M28: 0 | N28: 0 | O28: 0 | P28: 0 | Q28: 0 | R28: 0 | S28: 0 | T28: 0 | U28: 0
A29: ICONO | B29: =ICONO!C18 -> 0 | C29: 0 | D29: 0 | E29: 0 | F29: 0 | G29: 0 | H29: 0 | I29: 0 | J29: 0 | K29: 0 | L29: 0 | M29: 0 | N29: =+ICONO!E18 -> 0 | O29: =+ICONO!G18 -> 0 | P29: =+ICONO!I18 -> 0 | Q29: 0 | R29: =+ICONO!O18 -> 0 | S29: =+ICONO!M18 -> 0 | T29: =+ICONO!K18 -> 0 | U29: =+ICONO!Q18 -> 0
A30: CASA ESPECIALISTAS | B30: =+'CASA ESPECIALISTAS'!H18 -> 0 | C30: 0 | D30: 0 | E30: 0 | F30: 0 | G30: 0 | H30: 0 | I30: 0 | J30: 0 | K30: 0 | L30: 0 | M30: 0 | N30: 0 | O30: 0 | P30: 0 | Q30: 0 | R30: 0 | S30: 0 | T30: 0 | U30: 0
A31: CARTAGO | B31: =+CARTAGO!H18 -> 0 | C31: 0 | D31: 0 | E31: 0 | F31: 0 | G31: 0 | H31: 0 | I31: 0 | J31: 0 | K31: 0 | L31: 0 | M31: 0 | N31: 0 | O31: 0 | P31: 0 | Q31: 0 | R31: 0 | S31: 0 | T31: 0 | U31: 0
A32: LA REBECA | B32: =+'LA REBECA'!C18 -> 0 | C32: 0 | D32: 0 | E32: 0 | F32: =+'LA REBECA'!E18 -> 0 | G32: 0 | H32: 0 | I32: 0 | J32: 0 | K32: 0 | L32: 0 | M32: 0 | N32: =+'LA REBECA'!G18 -> 0 | O32: =+'LA REBECA'!I18 -> 0 | P32: =+'LA REBECA'!K18 -> 0 | Q32: =+'LA REBECA'!Q18 -> 0 | R32: =+'LA REBECA'!S18 -> 0 | S32: =+'LA REBECA'!O18 -> 0 | T32: =+'LA REBECA'!M18 -> 0 | U32: =+'LA REBECA'!U18 -> 0
A33: ÁLAMOS | B33: =ÁLAMOS!C18 -> 0 | C33: 0 | D33: 0 | E33: 0 | F33: 0 | G33: 0 | H33: 0 | I33: 0 | J33: 0 | K33: 0 | L33: 0 | M33: =ÁLAMOS!E18 -> 0 | N33: 0 | O33: 0 | P33: 0 | Q33: 0 | R33: 0 | S33: 0 | T33: 0 | U33: 0
A34: ARMENIA | B34: =+ARMENIA!H18 -> 0 | C34: 0 | D34: 0 | E34: 0 | F34: 0 | G34: 0 | H34: =+ARMENIA!J18 -> 0 | I34: 0 | J34: 0 | K34: 0 | L34: 0 | M34: 0 | N34: 0 | O34: 0 | P34: 0 | Q34: 0 | R34: 0 | S34: 0 | T34: 0 | U34: 0
A35: MANIZALES | B35: =+MANIZALES!C18 -> 0 | C35: 0 | D35: 0 | E35: 0 | F35: =+MANIZALES!I18 -> 0 | G35: 0 | H35: =+MANIZALES!M18 -> 0 | I35: =+MANIZALES!G18 -> 0 | J35: 0 | K35: 0 | L35: 0 | M35: =+MANIZALES!K18 -> 0 | N35: 0 | O35: 0 | P35: 0 | Q35: 0 | R35: 0 | S35: 0 | T35: 0 | U35: 0
A36: TOTAL | B36: =SUM(B24:B35) -> 0 | C36: 0 | D36: 0 | E36: 0 | F36: 0 | G36: 0 | H36: 0 | I36: 0 | J36: 0 | K36: 0 | L36: 0 | M36: 0 | N36: 0 | O36: 0 | P36: 0 | Q36: 0 | R36: 0 | S36: 0 | T36: 0 | U36: =SUM(U24:U35) -> 0
A39: GENERALES MTTO Y REPARACIONES
A40: SEDE | B40: CONSULTA | C40: HOSPITALIZ | D40: TRANSF - PATOLOG - UCI ADULTOS - UCI CUBA | E40: UCI PEDIATRICA - NEONATOS - PARTOS | F40: CIRUGIA | G40: URGENCIAS | H40: ONCOLOGIA | I40: FARMACIA | J40: MTTO | K40: SISTEMAS | L40: BIOTECNOLOGIA | M40: FACT Y CTAS MEDICAS | N40: T. HUMANO - S. OCUPACIONAL | O40: MERCADEO Y SIAU | P40: FINANCIERA | Q40: DIR MEDICA / CIENTIFICA | R40: DIR ADMINISTRATIVA | S40: PROYECTOS | T40: CALIDAD | U40: GERENCIA
A41: CUBA | B41: =CUBA!C29 -> 0 | C41: =CUBA!E29 -> 0 | D41: =CUBA!G29 -> 0 | E41: 0 | F41: =CUBA!I29 -> 0 | G41: 0 | H41: 0 | I41: =CUBA!K29 -> 0 | J41: =CUBA!M29 -> 0 | K41: =CUBA!O29 -> 0 | L41: =CUBA!Q29 -> 0 | M41: =CUBA!S29 -> 0 | N41: =CUBA!U29 -> 0 | O41: =CUBA!W29 -> 0 | P41: =CUBA!Y29 -> 0 | Q41: =CUBA!AA29 -> 0 | R41: =CUBA!AC29 -> 0 | S41: 0 | T41: =CUBA!AE29 -> 0 | U41: =CUBA!AG29 -> 0
A42: MEGACENTRO | B42: =MEGACENTRO!C31 -> 0 | C42: =MEGACENTRO!E31 -> 0 | D42: =MEGACENTRO!G31 -> 0 | E42: =MEGACENTRO!I31 -> 0 | F42: =MEGACENTRO!K31 -> 0 | G42: =MEGACENTRO!M31 -> 0 | H42: =+MEGACENTRO!O31 -> 0 | I42: =MEGACENTRO!Q31 -> 0 | J42: =MEGACENTRO!S31 -> 0 | K42: =MEGACENTRO!U31 -> 0 | L42: =MEGACENTRO!W31 -> 0 | M42: =MEGACENTRO!Y31 -> 0 | N42: =MEGACENTRO!AA31 -> 0 | O42: =MEGACENTRO!AC31 -> 0 | P42: =MEGACENTRO!AE31 -> 0 | Q42: =MEGACENTRO!AG31 -> 0 | R42: =MEGACENTRO!AI31 -> 0 | S42: =MEGACENTRO!AK31 -> 0 | T42: =MEGACENTRO!AM31 -> 0 | U42: =MEGACENTRO!AO31 -> 0
A43: TORRE 3 | B43: ='TORRE 3'!C35 -> 0 | C43: =+'TORRE 3'!E35+'TORRE 3'!G35 -> 0 | D43: 0 | E43: =+'TORRE 3'!I35+'TORRE 3'!K35 -> 0 | F43: =+'TORRE 3'!M35 -> 0 | G43: 0 | H43: 0 | I43: 0 | J43: 0 | K43: 0 | L43: 0 | M43: 0 | N43: 0 | O43: 0 | P43: 0 | Q43: 0 | R43: 0 | S43: 0 | T43: 0 | U43: 0
A44: OVAL | B44: =OVAL!H31 -> 0 | C44: 0 | D44: 0 | E44: 0 | F44: 0 | G44: 0 | H44: 0 | I44: 0 | J44: 0 | K44: 0 | L44: 0 | M44: 0 | N44: 0 | O44: 0 | P44: 0 | Q44: 0 | R44: 0 | S44: 0 | T44: 0 | U44: 0
A45: TORRE 2 | B45: ='TORRE 2'!H28 -> 0 | C45: 0 | D45: 0 | E45: 0 | F45: 0 | G45: 0 | H45: 0 | I45: 0 | J45: 0 | K45: 0 | L45: 0 | M45: 0 | N45: 0 | O45: 0 | P45: 0 | Q45: 0 | R45: 0 | S45: 0 | T45: 0 | U45: 0
A46: ICONO | B46: =ICONO!C38 -> 0 | C46: 0 | D46: 0 | E46: 0 | F46: 0 | G46: 0 | H46: 0 | I46: 0 | J46: 0 | K46: 0 | L46: 0 | M46: 0 | N46: =+ICONO!E38 -> 0 | O46: =+ICONO!G38 -> 0 | P46: =+ICONO!I38 -> 0 | Q46: 0 | R46: =+ICONO!O38 -> 0 | S46: =+ICONO!M38 -> 0 | T46: =+ICONO!K38 -> 0 | U46: =+ICONO!Q38 -> 0
A47: CASA ESPECIALISTAS | B47: =+'CASA ESPECIALISTAS'!H26 -> 0 | C47: 0 | D47: 0 | E47: 0 | F47: 0 | G47: 0 | H47: 0 | I47: 0 | J47: 0 | K47: 0 | L47: 0 | M47: 0 | N47: 0 | O47: 0 | P47: 0 | Q47: 0 | R47: 0 | S47: 0 | T47: 0 | U47: 0
A48: CARTAGO | B48: =+CARTAGO!H26 -> 0 | C48: 0 | D48: 0 | E48: 0 | F48: 0 | G48: 0 | H48: 0 | I48: 0 | J48: 0 | K48: 0 | L48: 0 | M48: 0 | N48: 0 | O48: 0 | P48: 0 | Q48: 0 | R48: 0 | S48: 0 | T48: 0 | U48: 0
A49: LA REBECA | B49: =+'LA REBECA'!C25 -> 0 | C49: 0 | D49: 0 | E49: 0 | F49: =+'LA REBECA'!E25 -> 0 | G49: 0 | H49: 0 | I49: 0 | J49: 0 | K49: 0 | L49: 0 | M49: 0 | N49: =+'LA REBECA'!G25 -> 0 | O49: =+'LA REBECA'!I25 -> 0 | P49: =+'LA REBECA'!K25 -> 0 | Q49: =+'LA REBECA'!Q25 -> 0 | R49: =+'LA REBECA'!S25 -> 0 | S49: =+'LA REBECA'!O25 -> 0 | T49: =+'LA REBECA'!M25 -> 0 | U49: =+'LA REBECA'!U25 -> 0
A50: ÁLAMOS | B50: =ÁLAMOS!C32 -> 0 | C50: 0 | D50: 0 | E50: 0 | F50: 0 | G50: 0 | H50: 0 | I50: 0 | J50: 0 | K50: 0 | L50: 0 | M50: =ÁLAMOS!E32 -> 0 | N50: 0 | O50: 0 | P50: 0 | Q50: 0 | R50: 0 | S50: 0 | T50: 0 | U50: 0
A51: ARMENIA | B51: =+ARMENIA!H29 -> 0 | C51: 0 | D51: 0 | E51: 0 | F51: 0 | G51: 0 | H51: =+ARMENIA!J29 -> 0 | I51: 0 | J51: 0 | K51: 0 | L51: 0 | M51: 0 | N51: 0 | O51: 0 | P51: 0 | Q51: 0 | R51: 0 | S51: 0 | T51: 0 | U51: 0
A52: MANIZALES | B52: =+MANIZALES!C27 -> 0 | C52: 0 | D52: 0 | E52: 0 | F52: =+MANIZALES!I27 -> 0 | G52: 0 | H52: =+MANIZALES!M27 -> 0 | I52: =+MANIZALES!G27 -> 0 | J52: 0 | K52: 0 | L52: 0 | M52: =+MANIZALES!K27 -> 0 | N52: =+MANIZALES!E27 -> 0 | O52: 0 | P52: 0 | Q52: 0 | R52: 0 | S52: 0 | T52: 0 | U52: 0
A53: SERVICIOS PUBLICOS CUBA | B53: =+'SERVICIOS PUBLICOS CUBA'!D16+'SERVICIOS PUBLICOS CUBA'!H16+'SERVICIOS PUBLICOS CUBA'!H34+'SERVICIOS PUBLICOS CUBA'!D52+'SERVICIOS PUBLICOS CUBA'!H52 -> 0 | C53: =+'SERVICIOS PUBLICOS CUBA'!D14+'SERVICIOS PUBLICOS CUBA'!H14+'SERVICIOS PUBLICOS CUBA'!D32+'SERVICIOS PUBLICOS CUBA'!H32+'SERVICIOS PUBLICOS CUBA'!D50+'SERVICIOS PUBLICOS CUBA'!H50 -> 0 | D53: =+'SERVICIOS PUBLICOS CUBA'!D15+'SERVICIOS PUBLICOS CUBA'!H15+'SERVICIOS PUBLICOS CUBA'!D33+'SERVICIOS PUBLICOS CUBA'!H33+'SERVICIOS PUBLICOS CUBA'!D51+'SERVICIOS PUBLICOS CUBA'!H51 -> 0 | E53: 0 | F53: =+'SERVICIOS PUBLICOS CUBA'!D13+'SERVICIOS PUBLICOS CUBA'!H13+'SERVICIOS PUBLICOS CUBA'!D31+'SERVICIOS PUBLICOS CUBA'!H31+'SERVICIOS PUBLICOS CUBA'!D49+'SERVICIOS PUBLICOS CUBA'!H49 -> 0 | G53: =+'SERVICIOS PUBLICOS CUBA'!H61 -> 0 | H53: 0 | I53: ='SERVICIOS PUBLICOS CUBA'!D20+'SERVICIOS PUBLICOS CUBA'!H20+'SERVICIOS PUBLICOS CUBA'!D38+'SERVICIOS PUBLICOS CUBA'!H38+'SERVICIOS PUBLICOS CUBA'!D56+'SERVICIOS PUBLICOS CUBA'!H56 -> 0 | J53: ='SERVICIOS PUBLICOS CUBA'!D24+'SERVICIOS PUBLICOS CUBA'!H24+'SERVICIOS PUBLICOS CUBA'!D42+'SERVICIOS PUBLICOS CUBA'!H42+'SERVICIOS PUBLICOS CUBA'!D60+'SERVICIOS PUBLICOS CUBA'!H60 -> 0 | K53: ='SERVICIOS PUBLICOS CUBA'!D19+'SERVICIOS PUBLICOS CUBA'!H19+'SERVICIOS PUBLICOS CUBA'!D37+'SERVICIOS PUBLICOS CUBA'!H37+'SERVICIOS PUBLICOS CUBA'!D55+'SERVICIOS PUBLICOS CUBA'!H55 -> 0 | L53: ='SERVICIOS PUBLICOS CUBA'!D23+'SERVICIOS PUBLICOS CUBA'!H23+'SERVICIOS PUBLICOS CUBA'!D41+'SERVICIOS PUBLICOS CUBA'!H41+'SERVICIOS PUBLICOS CUBA'!D59+'SERVICIOS PUBLICOS CUBA'!H59 -> 0 | M53: ='SERVICIOS PUBLICOS CUBA'!D21+'SERVICIOS PUBLICOS CUBA'!H21+'SERVICIOS PUBLICOS CUBA'!D39+'SERVICIOS PUBLICOS CUBA'!H39+'SERVICIOS PUBLICOS CUBA'!D57+'SERVICIOS PUBLICOS CUBA'!H57 -> 0 | N53: ='SERVICIOS PUBLICOS CUBA'!D18+'SERVICIOS PUBLICOS CUBA'!H18+'SERVICIOS PUBLICOS CUBA'!D36+'SERVICIOS PUBLICOS CUBA'!H36+'SERVICIOS PUBLICOS CUBA'!D54+'SERVICIOS PUBLICOS CUBA'!H54 -> 0 | O53: ='SERVICIOS PUBLICOS CUBA'!D22+'SERVICIOS PUBLICOS CUBA'!H22+'SERVICIOS PUBLICOS CUBA'!D40+'SERVICIOS PUBLICOS CUBA'!H40+'SERVICIOS PUBLICOS CUBA'!D58+'SERVICIOS PUBLICOS CUBA'!H58 -> 0 | P53: ='SERVICIOS PUBLICOS CUBA'!D17+'SERVICIOS PUBLICOS CUBA'!H17+'SERVICIOS PUBLICOS CUBA'!D35+'SERVICIOS PUBLICOS CUBA'!H35+'SERVICIOS PUBLICOS CUBA'!D53+'SERVICIOS PUBLICOS CUBA'!H53 -> 0 | Q53: =+'SERVICIOS PUBLICOS CUBA'!H62+'SERVICIOS PUBLICOS CUBA'!D62 -> 0 | R53: 0 | S53: 0 | T53: 0 | U53: 0
A54: SERVICIOS PUBLICOS MEGACENTRO | B54: =+'SERVICIOS PUBLICOS MEGACENTRO'!C18+'SERVICIOS PUBLICOS MEGACENTRO'!G18+'SERVICIOS PUBLICOS MEGACENTRO'!C35+'SERVICIOS PUBLICOS MEGACENTRO'!G35+'SERVICIOS PUBLICOS MEGACENTRO'!C52+'SERVICIOS PUBLICOS MEGACENTRO'!G52 -> 0 | C54: =+'SERVICIOS PUBLICOS MEGACENTRO'!C14+'SERVICIOS PUBLICOS MEGACENTRO'!G14+'SERVICIOS PUBLICOS MEGACENTRO'!C31+'SERVICIOS PUBLICOS MEGACENTRO'!G31+'SERVICIOS PUBLICOS MEGACENTRO'!C48+'SERVICIOS PUBLICOS MEGACENTRO'!G48 -> 0 | D54: =+'SERVICIOS PUBLICOS MEGACENTRO'!C16+'SERVICIOS PUBLICOS MEGACENTRO'!G16+'SERVICIOS PUBLICOS MEGACENTRO'!C33+'SERVICIOS PUBLICOS MEGACENTRO'!G33+'SERVICIOS PUBLICOS MEGACENTRO'!C49+'SERVICIOS PUBLICOS MEGACENTRO'!G49 -> 0 | E54: =+'SERVICIOS PUBLICOS MEGACENTRO'!C15+'SERVICIOS PUBLICOS MEGACENTRO'!G15+'SERVICIOS PUBLICOS MEGACENTRO'!C32+'SERVICIOS PUBLICOS MEGACENTRO'!G32+'SERVICIOS PUBLICOS MEGACENTRO'!C50+'SERVICIOS PUBLICOS MEGACENTRO'!G50 -> 0 | F54: =+'SERVICIOS PUBLICOS MEGACENTRO'!C13+'SERVICIOS PUBLICOS MEGACENTRO'!G13+'SERVICIOS PUBLICOS MEGACENTRO'!C30+'SERVICIOS PUBLICOS MEGACENTRO'!G30+'SERVICIOS PUBLICOS MEGACENTRO'!C47+'SERVICIOS PUBLICOS MEGACENTRO'!G47 -> 0 | G54: =+'SERVICIOS PUBLICOS MEGACENTRO'!C23+'SERVICIOS PUBLICOS MEGACENTRO'!G23+'SERVICIOS PUBLICOS MEGACENTRO'!C40+'SERVICIOS PUBLICOS MEGACENTRO'!G40+'SERVICIOS PUBLICOS MEGACENTRO'!C61+'SERVICIOS PUBLICOS MEGACENTRO'!G61 -> 0 | H54: =+'SERVICIOS PUBLICOS MEGACENTRO'!C17+'SERVICIOS PUBLICOS MEGACENTRO'!G17+'SERVICIOS PUBLICOS MEGACENTRO'!C34+'SERVICIOS PUBLICOS MEGACENTRO'!G34+'SERVICIOS PUBLICOS MEGACENTRO'!C51+'SERVICIOS PUBLICOS MEGACENTRO'!G51 -> 0 | I54: =+'SERVICIOS PUBLICOS MEGACENTRO'!C20+'SERVICIOS PUBLICOS MEGACENTRO'!G20+'SERVICIOS PUBLICOS MEGACENTRO'!C37+'SERVICIOS PUBLICOS MEGACENTRO'!G37+'SERVICIOS PUBLICOS MEGACENTRO'!C56+'SERVICIOS PUBLICOS MEGACENTRO'!G56 -> 0 | J54: =+'SERVICIOS PUBLICOS MEGACENTRO'!C22+'SERVICIOS PUBLICOS MEGACENTRO'!G22+'SERVICIOS PUBLICOS MEGACENTRO'!C39+'SERVICIOS PUBLICOS MEGACENTRO'!G39+'SERVICIOS PUBLICOS MEGACENTRO'!C60+'SERVICIOS PUBLICOS MEGACENTRO'!G60 -> 0 | K54: =+'SERVICIOS PUBLICOS MEGACENTRO'!C19+'SERVICIOS PUBLICOS MEGACENTRO'!G19+'SERVICIOS PUBLICOS MEGACENTRO'!C36+'SERVICIOS PUBLICOS MEGACENTRO'!G36+'SERVICIOS PUBLICOS MEGACENTRO'!C55+'SERVICIOS PUBLICOS MEGACENTRO'!G55 -> 0 | L54: =+'SERVICIOS PUBLICOS MEGACENTRO'!C21+'SERVICIOS PUBLICOS MEGACENTRO'!G21+'SERVICIOS PUBLICOS MEGACENTRO'!C38+'SERVICIOS PUBLICOS MEGACENTRO'!G38+'SERVICIOS PUBLICOS MEGACENTRO'!C59+'SERVICIOS PUBLICOS MEGACENTRO'!G59 -> 0 | M54: =+'SERVICIOS PUBLICOS MEGACENTRO'!C57+'SERVICIOS PUBLICOS MEGACENTRO'!G57 -> 0 | N54: =+'SERVICIOS PUBLICOS MEGACENTRO'!G54+'SERVICIOS PUBLICOS MEGACENTRO'!C54 -> 0 | O54: =+'SERVICIOS PUBLICOS MEGACENTRO'!G58+'SERVICIOS PUBLICOS MEGACENTRO'!C58 -> 0 | P54: =+'SERVICIOS PUBLICOS MEGACENTRO'!G53+'SERVICIOS PUBLICOS MEGACENTRO'!C53 -> 0 | Q54: =+'SERVICIOS PUBLICOS MEGACENTRO'!G64+'SERVICIOS PUBLICOS MEGACENTRO'!C64 -> 0 | R54: =+'SERVICIOS PUBLICOS MEGACENTRO'!G63 -> 0 | S54: 0 | T54: 0 | U54: =+'SERVICIOS PUBLICOS MEGACENTRO'!G62+'SERVICIOS PUBLICOS MEGACENTRO'!C62 -> 0
A55: TOTAL | B55: =SUM(B41:B54) -> 0 | C55: 0 | D55: 0 | E55: 0 | F55: 0 | G55: 0 | H55: 0 | I55: 0 | J55: 0 | K55: 0 | L55: 0 | M55: 0 | N55: 0 | O55: 0 | P55: 0 | Q55: 0 | R55: 0 | S55: 0 | T55: 0 | U55: 0
A58: SUMINISTROS E INSUMOS
A59: SEDE | B59: CONSULTA | C59: HOSPITALIZ | D59: TRANSF - PATOLOG - UCI ADULTOS - UCI CUBA | E59: UCI PEDIATRICA - NEONATOS - PARTOS | F59: CIRUGIA | G59: URGENCIAS | H59: ONCOLOGIA | I59: FARMACIA | J59: MTTO | K59: SISTEMAS | L59: BIOTECNOLOGIA | M59: FACT Y CTAS MEDICAS | N59: T. HUMANO - S. OCUPACIONAL | O59: MERCADEO Y SIAU | P59: FINANCIERA | Q59: DIR MEDICA / CIENTIFICA | R59: DIR ADMINISTRATIVA | S59: PROYECTOS | T59: CALIDAD | U59: GERENCIA
A60: CUBA | B60: =CUBA!C39 -> 0 | C60: =CUBA!E39 -> 0 | D60: =CUBA!G39 -> 0 | E60: 0 | F60: =CUBA!I39 -> 0 | G60: 0 | H60: 0 | I60: =CUBA!K39 -> 0 | J60: =CUBA!M39 -> 0 | K60: =CUBA!O39 -> 0 | L60: =CUBA!Q39 -> 0 | M60: =CUBA!S39 -> 0 | N60: =CUBA!U39 -> 0 | O60: =CUBA!W39 -> 0 | P60: =CUBA!Y39 -> 0 | Q60: =CUBA!AA39 -> 0 | R60: =CUBA!AC39 -> 0 | S60: 0 | T60: =CUBA!AE39 -> 0 | U60: =CUBA!AG39 -> 0
A61: MEGACENTRO | B61: =MEGACENTRO!C43 -> 0 | C61: =MEGACENTRO!E43 -> 0 | D61: =MEGACENTRO!G43 -> 0 | E61: =MEGACENTRO!I43 -> 0 | F61: =MEGACENTRO!K43 -> 0 | G61: =MEGACENTRO!M43 -> 0 | H61: =+MEGACENTRO!O43 -> 0 | I61: =MEGACENTRO!Q43 -> 0 | J61: =MEGACENTRO!S43 -> 0 | K61: =MEGACENTRO!U43 -> 0 | L61: =MEGACENTRO!W43 -> 0 | M61: =MEGACENTRO!Y43 -> 0 | N61: =MEGACENTRO!AA43 -> 0 | O61: =MEGACENTRO!AC43 -> 0 | P61: =MEGACENTRO!AE43 -> 0 | Q61: =MEGACENTRO!AG43 -> 0 | R61: =MEGACENTRO!AI43 -> 0 | S61: =MEGACENTRO!AK43 -> 0 | T61: =MEGACENTRO!AM43 -> 0 | U61: =MEGACENTRO!AO43 -> 0
A62: TORRE 3 | B62: 0 | C62: 0 | D62: 0 | E62: 0 | F62: 0 | G62: 0 | H62: 0 | I62: 0 | J62: 0 | K62: 0 | L62: 0 | M62: 0 | N62: 0 | O62: 0 | P62: 0 | Q62: 0 | R62: 0 | S62: 0 | T62: 0 | U62: 0
A63: OVAL | B63: 0 | C63: 0 | D63: 0 | E63: 0 | F63: 0 | G63: 0 | H63: 0 | I63: 0 | J63: 0 | K63: 0 | L63: 0 | M63: 0 | N63: 0 | O63: 0 | P63: 0 | Q63: 0 | R63: 0 | S63: 0 | T63: 0 | U63: 0
A64: TORRE 2 | B64: 0 | C64: 0 | D64: 0 | E64: 0 | F64: 0 | G64: 0 | H64: 0 | I64: 0 | J64: 0 | K64: 0 | L64: 0 | M64: 0 | N64: 0 | O64: 0 | P64: 0 | Q64: 0 | R64: 0 | S64: 0 | T64: 0 | U64: 0
A65: ICONO | B65: 0 | C65: 0 | D65: 0 | E65: 0 | F65: 0 | G65: 0 | H65: 0 | I65: 0 | J65: 0 | K65: 0 | L65: 0 | M65: 0 | N65: 0 | O65: 0 | P65: 0 | Q65: 0 | R65: 0 | S65: 0 | T65: 0 | U65: 0
A66: ÁLAMOS | B66: 0 | C66: 0 | D66: 0 | E66: 0 | F66: 0 | G66: 0 | H66: 0 | I66: 0 | J66: 0 | K66: 0 | L66: 0 | M66: 0 | N66: 0 | O66: 0 | P66: 0 | Q66: 0 | R66: 0 | S66: 0 | T66: 0 | U66: 0
A67: ARMENIA | B67: 0 | C67: 0 | D67: 0 | E67: 0 | F67: 0 | G67: 0 | H67: =+ARMENIA!J37 -> 0 | I67: 0 | J67: 0 | K67: 0 | L67: 0 | M67: 0 | N67: 0 | O67: 0 | P67: 0 | Q67: 0 | R67: 0 | S67: 0 | T67: 0 | U67: 0
A68: MANIZALES | B68: 0 | C68: 0 | D68: 0 | E68: 0 | F68: 0 | G68: 0 | H68: =+MANIZALES!M52 -> 0 | I68: 0 | J68: 0 | K68: 0 | L68: 0 | M68: 0 | N68: 0 | O68: 0 | P68: 0 | Q68: 0 | R68: 0 | S68: 0 | T68: 0 | U68: 0
A69: INSUMOS FARMACEUTICOS MEGA
A70: INSUMOS FARMACEUTICOS CUBA
A71: TOTAL | B71: =SUM(B60:B70) -> 0 | C71: 0 | D71: 0 | E71: 0 | F71: 0 | G71: 0 | H71: 0 | I71: 0 | J71: 0 | K71: 0 | L71: 0 | M71: 0 | N71: 0 | O71: 0 | P71: 0 | Q71: 0 | R71: 0 | S71: 0 | T71: 0 | U71: 0
A74: HONORARIOS
A75: SEDE | B75: CONSULTA | C75: HOSPITALIZ | D75: TRANSF - PATOLOG - UCI ADULTOS - UCI CUBA | E75: UCI PEDIATRICA - NEONATOS - PARTOS | F75: CIRUGIA | G75: URGENCIAS | H75: ONCOLOGIA | I75: FARMACIA | J75: MTTO | K75: SISTEMAS | L75: BIOTECNOLOGIA | M75: FACT Y CTAS MEDICAS | N75: T. HUMANO - S. OCUPACIONAL | O75: MERCADEO Y SIAU | P75: FINANCIERA | Q75: DIR MEDICA / CIENTIFICA | R75: DIR ADMINISTRATIVA | S75: PROYECTOS | T75: CALIDAD | U75: GERENCIA
A76: CUBA | B76: =CUBA!I47 -> 0 | C76: =CUBA!E47 -> 0 | D76: =CUBA!G47 -> 0 | E76: 0 | F76: =CUBA!I47 -> 0 | G76: 0 | I76: =CUBA!K47 -> 0 | J76: =CUBA!M47 -> 0 | K76: =CUBA!O47 -> 0 | L76: =CUBA!Q47 -> 0 | M76: =CUBA!S47 -> 0 | N76: =CUBA!U47 -> 0 | O76: =CUBA!W47 -> 0 | P76: =CUBA!Y47 -> 0 | Q76: =CUBA!AA47 -> 0 | R76: =CUBA!AC47 -> 0 | S76: 0 | T76: =CUBA!AE47 -> 0 | U76: =CUBA!AG47 -> 0
A77: MEGACENTRO | B77: =MEGACENTRO!C245 -> 0 | C77: =MEGACENTRO!E245 -> 0 | D77: =MEGACENTRO!G245 -> 0 | E77: =MEGACENTRO!I245 -> 0 | F77: =MEGACENTRO!K245 -> 0 | G77: =MEGACENTRO!M245 -> 0 | H77: =+MEGACENTRO!O245 -> 0 | I77: =MEGACENTRO!Q245 -> 0 | J77: =MEGACENTRO!S245 -> 0 | K77: =MEGACENTRO!U245 -> 0 | L77: =MEGACENTRO!W245 -> 0 | M77: =MEGACENTRO!Y245 -> 0 | N77: =MEGACENTRO!AA245 -> 0 | O77: =MEGACENTRO!AC245 -> 0 | P77: =MEGACENTRO!AE245 -> 0 | Q77: =MEGACENTRO!AG245 -> 0 | R77: =MEGACENTRO!AI245 -> 0 | S77: 0 | T77: =MEGACENTRO!AM245 -> 0 | U77: =MEGACENTRO!AO245 -> 0
A78: TORRE 3 | B78: 0 | C78: 0 | D78: 0 | E78: 0 | F78: 0 | G78: 0 | I78: 0 | J78: 0 | K78: 0 | L78: 0 | M78: 0 | N78: 0 | O78: 0 | P78: 0 | Q78: 0 | R78: 0 | S78: 0 | T78: 0 | U78: 0
A79: OVAL | B79: 0 | C79: 0 | D79: 0 | E79: 0 | F79: 0 | G79: 0 | I79: 0 | J79: 0 | K79: 0 | L79: 0 | M79: 0 | N79: 0 | O79: 0 | P79: 0 | Q79: 0 | R79: 0 | S79: 0 | T79: 0 | U79: 0
A80: TORRE 2 | B80: 0 | C80: 0 | D80: 0 | E80: 0 | F80: 0 | G80: 0 | I80: 0 | J80: 0 | K80: 0 | L80: 0 | M80: 0 | N80: 0 | O80: 0 | P80: 0 | Q80: 0 | R80: 0 | S80: 0 | T80: 0 | U80: 0
A81: ICONO | B81: 0 | C81: 0 | D81: 0 | E81: 0 | F81: 0 | G81: 0 | I81: 0 | J81: 0 | K81: 0 | L81: 0 | M81: 0 | N81: 0 | O81: 0 | P81: 0 | Q81: 0 | R81: 0 | S81: 0 | T81: 0 | U81: 0
A82: ÁLAMOS | B82: 0 | C82: 0 | D82: 0 | E82: 0 | F82: 0 | G82: 0 | I82: 0 | J82: 0 | K82: 0 | L82: 0 | M82: 0 | N82: 0 | O82: 0 | P82: 0 | Q82: 0 | R82: 0 | S82: 0 | T82: 0 | U82: 0
A83: ARMENIA | B83: 0 | C83: 0 | D83: 0 | E83: 0 | F83: 0 | G83: 0 | I83: 0 | J83: 0 | K83: 0 | L83: 0 | M83: 0 | N83: 0 | O83: 0 | P83: 0 | Q83: 0 | R83: 0 | S83: 0 | T83: 0 | U83: 0
A84: MANIZALES | B84: 0 | C84: 0 | D84: 0 | E84: 0 | F84: 0 | G84: 0 | H84: =+MANIZALES!M69 -> 0 | I84: 0 | J84: 0 | K84: 0 | L84: 0 | M84: 0 | N84: 0 | O84: 0 | P84: 0 | Q84: 0 | R84: 0 | S84: 0 | T84: 0 | U84: 0
A85: NÓMINA MEGACENTRO
A86: NÓMINA CUBA
A87: TOTAL | B87: =SUM(B76:B86) -> 0 | C87: 0 | D87: 0 | E87: 0 | F87: 0 | G87: 0 | H87: 0 | I87: 0 | J87: 0 | K87: 0 | L87: 0 | M87: 0 | N87: 0 | O87: 0 | P87: 0 | Q87: 0 | R87: 0 | S87: 0 | T87: 0 | U87: 0
A89: TOTAL | B89: =B19+B87+B71+B55+B36 -> 0 | C89: =C19+C87+C71+C55+C36 -> 0 | D89: 0 | E89: 0 | F89: 0 | G89: 0 | H89: 0 | I89: 0 | J89: 0 | K89: 0 | L89: 0 | M89: 0 | N89: 0 | O89: 0 | P89: 0 | Q89: 0 | R89: 0 | S89: 0 | T89: 0 | U89: 0
A91: TOTAL EJECUTADO SIN CAPEX | B91: =+B89-B19 -> 0 | C91: =+C89-C19 -> 0 | D91: 0 | E91: 0 | F91: 0 | G91: 0 | H91: 0 | I91: 0 | J91: 0 | K91: 0 | L91: 0 | M91: 0 | N91: 0 | O91: 0 | P91: 0 | Q91: 0 | R91: 0 | S91: 0 | T91: 0 | U91: 0
A93: TOTAL COSTOS | B93: =+ColorFunction(A93,MEGACENTRO!C8:C249,1)+ColorFunction('CONSOLIDADO POR AREA'!A93,'TORRE 3'!C8:C39,1)+ColorFunction('CONSOLIDADO POR AREA'!A93,OVAL!H7:H35,1)+ColorFunction('CONSOLIDADO POR AREA'!A93,'TORRE 2'!H7:H32,1)+ColorFunction('CONSOLIDADO POR AREA'!A93,ICONO!C7:C42,1)+ColorFunction('CONSOLIDADO POR AREA'!A93,ÁLAMOS!C7:C36,1)+ColorFunction('CONSOLIDADO POR AREA'!A93,ARMENIA!H7:H41,1)+ColorFunction('CONSOLIDADO POR AREA'!A93,MANIZALES!C7:C31,1)+B85+B86+B69+B70+ColorFunction(A93,CUBA!C8:C51,1)+ColorFunction(A93,CARTAGO!H8:H30,1)+ColorFunction(A93,'LA REBECA'!C7:C29,1)+ColorFunction(A93,'CASA ESPECIALISTAS'!H7:H30,1) -> 0 | C93: =+ColorFunction(A93,CUBA!E8:E51,1)+ColorFunction(A93,MEGACENTRO!E8:E249,1)+ColorFunction(A93,'TORRE 3'!E8:G39,1)+C85+C86+C69+C70 -> 0 | D93: =+ColorFunction(A93,CUBA!G8:G51,1)+ColorFunction(A93,MEGACENTRO!G8:G249,1)+D85+D86+D69+D70 -> 0 | E93: =+ColorFunction(A93,MEGACENTRO!I8:I249,1)+ColorFunction(A93,'TORRE 3'!I8:K39,1)+E85+E86+E69+E70 -> 0 | F93: =+ColorFunction(A93,CUBA!I8:I51,1)+ColorFunction(A93,MEGACENTRO!K8:K249,1)+ColorFunction(A93,'TORRE 3'!M8:M39,1)+ColorFunction(A93,'LA REBECA'!E7:E29,1)+F85+F86+F69+F70 -> 0 | G93: =+ColorFunction(A93,MEGACENTRO!M8:M249,1)+G85+G86+G69+G70 -> 0 | H93: =+ColorFunction(A93,MEGACENTRO!O8:O249,1)+ColorFunction(A93,ARMENIA!J7:J41,1)+ColorFunction(A93,MANIZALES!M7:M31,1)+H85+H86+H69+H70 -> 0 | I93: =+ColorFunction(A93,CUBA!K8:K51,1)+ColorFunction(A93,MEGACENTRO!Q8:Q249,1)+ColorFunction(A93,MANIZALES!G7:G31,1) -> 0 | J93: =+ColorFunction(A93,CUBA!M8:M51,1)+ColorFunction(A93,MEGACENTRO!S8:S249,1) -> 0 | K93: =+ColorFunction(A93,CUBA!O8:O51,1)+ColorFunction(A93,MEGACENTRO!U8:U249,1) -> 0 | L93: =+ColorFunction(A93,CUBA!Q8:Q51,1)+ColorFunction(A93,MEGACENTRO!W8:W249,1) -> 0 | M93: =+ColorFunction(A93,CUBA!S8:S51,1)+ColorFunction(A93,MEGACENTRO!Y8:Y249,1)+ColorFunction(A93,ÁLAMOS!E7:E36,1) -> 0 | N93: =+ColorFunction(A93,CUBA!U8:U51,1)+ColorFunction(A93,MEGACENTRO!AA8:AA249,1)+ColorFunction(A93,ICONO!E7:E42,1)+ColorFunction(A93,MANIZALES!E7:E31,1)+ColorFunction(A93,'LA REBECA'!G7:G29,1) -> 0 | O93: =+ColorFunction(A93,CUBA!W8:W51,1)+ColorFunction(A93,MEGACENTRO!AC8:AC249,1)+ColorFunction(A93,ICONO!G7:G42,1)+ColorFunction(A93,'LA REBECA'!I7:I29,1) -> 0 | P93: =+ColorFunction(A93,CUBA!Y8:Y51,1)+ColorFunction(A93,MEGACENTRO!AE8:AE249,1)+ColorFunction(A93,ICONO!I7:I42,1)+ColorFunction(A93,'LA REBECA'!K7:K29,1) -> 0 | Q93: =+ColorFunction(A93,CUBA!AA8:AA51,1)+ColorFunction(A93,MEGACENTRO!AG8:AG249,1)+ColorFunction(A93,'LA REBECA'!Q7:Q29,1) -> 0 | R93: =+ColorFunction(A93,CUBA!AC8:AC51,1)+ColorFunction(A93,MEGACENTRO!AI8:AI249,1)+ColorFunction(A93,ICONO!O7:O42,1)+ColorFunction(A93,'LA REBECA'!S7:S29,1) -> 0 | S93: =+ColorFunction(A93,MEGACENTRO!AK8:AK249,1)+ColorFunction(A93,ICONO!M7:M42,1)+ColorFunction(A93,'LA REBECA'!O7:O29,1) -> 0 | T93: =+ColorFunction(A93,CUBA!AE8:AE51,1)+ColorFunction(A93,MEGACENTRO!AM8:AM249,1)+ColorFunction(A93,ICONO!K7:K42,1)+ColorFunction(A93,'LA REBECA'!M7:M29,1) -> 0 | U93: =+ColorFunction(A93,CUBA!AG8:AG51,1)+ColorFunction(A93,MEGACENTRO!AO8:AO249,1)+ColorFunction(A93,ICONO!Q7:Q42,1)+ColorFunction(A93,'LA REBECA'!U7:U29,1) -> 0
A94: TOTAL GASTOS | B94: =+ColorFunction(A94,MEGACENTRO!C9:C250,1)+ColorFunction('CONSOLIDADO POR AREA'!A94,'TORRE 3'!C9:C40,1)+ColorFunction('CONSOLIDADO POR AREA'!A94,OVAL!H8:H36,1)+ColorFunction('CONSOLIDADO POR AREA'!A94,'TORRE 2'!H8:H33,1)+ColorFunction('CONSOLIDADO POR AREA'!A94,ICONO!C8:C43,1)+ColorFunction('CONSOLIDADO POR AREA'!A94,ÁLAMOS!C8:C37,1)+ColorFunction('CONSOLIDADO POR AREA'!A94,ARMENIA!H8:H42,1)+ColorFunction('CONSOLIDADO POR AREA'!A94,MANIZALES!C8:C32,1)+B53+B54+ColorFunction(A94,CUBA!C9:C52,1)+ColorFunction(A94,CARTAGO!H8:H30,1)+ColorFunction(A94,'LA REBECA'!C7:C29,1)+ColorFunction(A94,'CASA ESPECIALISTAS'!H7:H30,1) -> 0 | C94: =+ColorFunction(A94,CUBA!E9:E52,1)+ColorFunction(A94,MEGACENTRO!E9:E250,1)+ColorFunction(A94,'TORRE 3'!E9:G40,1)+C53+C54 -> 0 | D94: =+ColorFunction(A94,CUBA!G9:G52,1)+ColorFunction(A94,MEGACENTRO!G9:G250,1)+D53+D54 -> 0 | E94: =+ColorFunction(A94,MEGACENTRO!I9:I250,1)+ColorFunction(A94,'TORRE 3'!I9:K40,1)+E53+E54 -> 0 | F94: =+ColorFunction(A94,CUBA!I9:I52,1)+ColorFunction(A94,MEGACENTRO!K9:K250,1)+ColorFunction(A94,'TORRE 3'!M9:M40,1)+ColorFunction(A94,'LA REBECA'!E7:E29,1)+F53+F54 -> 0 | G94: =+ColorFunction(A94,MEGACENTRO!M9:M250,1)+G53+G54 -> 0 | H94: =+ColorFunction(A94,MEGACENTRO!O9:O250,1)+ColorFunction(A94,ARMENIA!J8:J42,1)+ColorFunction(A94,MANIZALES!M8:M32,1)+H53+H54 -> 0 | I94: =+ColorFunction(A94,CUBA!K9:K52,1)+ColorFunction(A94,MEGACENTRO!Q9:Q250,1)+ColorFunction(A94,MANIZALES!G8:G32,1)+I53+I54+I85+I86+I69+I70 -> 0 | J94: =+ColorFunction(A94,CUBA!M9:M52,1)+ColorFunction(A94,MEGACENTRO!S9:S250,1)+J53+J54+J85+J86+J69+J70 -> 0 | K94: =+ColorFunction(A94,CUBA!O9:O52,1)+ColorFunction(A94,MEGACENTRO!U9:U250,1)+K53+K54+K85+K86+K69+K70 -> 0 | L94: =+ColorFunction(A94,CUBA!Q9:Q52,1)+ColorFunction(A94,MEGACENTRO!W9:W250,1)+L53+L54+L85+L86+L69+L70 -> 0 | M94: =+ColorFunction(A94,CUBA!S9:S52,1)+ColorFunction(A94,MEGACENTRO!Y9:Y250,1)+ColorFunction(A94,ÁLAMOS!E8:E37,1)+M53+M54+M85+M86+M69+M70 -> 0 | N94: =+ColorFunction(A94,CUBA!U9:U52,1)+ColorFunction(A94,MEGACENTRO!AA9:AA250,1)+ColorFunction(A94,ICONO!E8:E43,1)+ColorFunction(A94,MANIZALES!E8:E32,1)+ColorFunction(A94,'LA REBECA'!G7:G29,1)+N53+N54+N85+N86+N69+N70 -> 0 | O94: =+ColorFunction(A94,CUBA!W9:W52,1)+ColorFunction(A94,MEGACENTRO!AC9:AC250,1)+ColorFunction(A94,ICONO!G8:G43,1)+ColorFunction(A94,'LA REBECA'!I7:I29,1)+O53+O54+O85+O86+O69+O70 -> 0 | P94: =+ColorFunction(A94,CUBA!Y9:Y52,1)+ColorFunction(A94,MEGACENTRO!AE9:AE250,1)+ColorFunction(A94,ICONO!I8:I43,1)+ColorFunction(A94,'LA REBECA'!K7:K29,1)+P53+P54+P85+P86+P69+P70 -> 0 | Q94: =+ColorFunction(A94,CUBA!AA9:AA52,1)+ColorFunction(A94,MEGACENTRO!AG9:AG250,1)+ColorFunction(A93,'LA REBECA'!Q7:Q29,1)+Q53+Q54+Q85+Q86+Q69+Q70 -> 0 | R94: =+ColorFunction(A94,CUBA!AC9:AC52,1)+ColorFunction(A94,MEGACENTRO!AI9:AI250,1)+ColorFunction(A94,ICONO!O8:O43,1)+ColorFunction(A94,'LA REBECA'!S7:S29,1)+R53+R54+R85+R86+R69+R70 -> 0 | S94: =+ColorFunction(A94,MEGACENTRO!AK9:AK250,1)+ColorFunction(A94,ICONO!M8:M43,1)+ColorFunction(A94,'LA REBECA'!O7:O29,1)+S53+S54+S85+S86+S69+S70 -> 0 | T94: =+ColorFunction(A94,CUBA!AE9:AE52,1)+ColorFunction(A94,MEGACENTRO!AM9:AM250,1)+ColorFunction(A94,ICONO!K8:K43,1)+ColorFunction(A94,'LA REBECA'!M7:M29,1)+T53+T54+T85+T86+T69+T70 -> 0 | U94: =+ColorFunction(A94,CUBA!AG9:AG52,1)+ColorFunction(A94,MEGACENTRO!AO9:AO250,1)+ColorFunction(A94,ICONO!Q8:Q43,1)+ColorFunction(A94,'LA REBECA'!U7:U29,1)+U53+U54+U85+U86+U69+U70 -> 0
B96: =+B89-B93-B94-B19 -> 0 | C96: =+C89-C93-C94-C19 -> 0 | D96: 0 | E96: 0 | F96: 0 | G96: 0 | H96: 0 | I96: 0 | J96: 0 | K96: 0 | L96: 0 | M96: 0 | N96: 0 | O96: 0 | P96: 0 | Q96: 0 | R96: 0 | S96: 0 | T96: 0 | U96: 0

Sheet INSUMOS
B1: NOMBRE EJECUCIÓN PRESUPUESTAL | H1: CÓDIGO 09-FT-030
B3: TIPO DE DOCUMENTO FORMATO | E3: PROCESO APOYO | H3: VERSIÓN 003
C6: UCI | D6: HOSP | E6: CX | F6: CEXT | G6: HEMODINAMIA | H6: OSTEOSINTESIS
A7: MEDICAM.-MATERIAL QUIRURGICO | B7: =+'INSUMOS CUBA'!D10+'INSUMOS MEGACENTRO'!D38 -> 0 | C7: =($B$7*19%) -> 0 | D7: =($B$7*7%) -> 0 | E7: =($B$7*73%) -> 0 | F7: =($B$7*1%) -> 0 | G7: =B8 -> 0 | H7: =B9 -> 0
A8: HEMODINAMIA | B8: =+HEMODINAMIA!D13 -> 0
A9: OSTEOSINTESIS | B9: =+OSTEOSINTESIS!D13 -> 0
B10: =SUM(B7:B9) -> 0
A12: INSUMOS MES ANTERIOR | B12: 0
A14: TOTAL PAPELERIA GENERAL | B14: =+CUBA!AI37+MEGACENTRO!AQ41 -> 0
A15: LITOGRAFIA | B15: =+CUBA!AI36+MEGACENTRO!AQ40 -> 0

Sheet Lavanderia (hidden)
A1: =2683+510 -> 3193 | C1: MAC | D1: Hosp | E1: 2179.1 | F1: =+E1*$A$1 -> 6957866.3
D2: UCI | E2: 4236 | F2: =+E2*$A$1 -> 13525548
D3: Cx | E3: 11773.3 | F3: =+E3*$A$1 -> 37592146.9
D4: Urgencias | E4: 1178.8 | F4: =+E4*$A$1 -> 3763908.4
C6: CUBA | D6: Hosp | E6: 2163 | F6: =+E6*$A$1 -> 6906459
D7: UCI | E7: 1995 | F7: =+E7*$A$1 -> 6370035
D8: Cx | E8: 4935 | F8: =+E8*$A$1 -> 15757455
F10: =SUM(F1:F9) -> 90873418.6

Sheet CUBA
B1: NOMBRE EJECUCIÓN PRESUPUESTAL | AG1: CÓDIGO 09-FT-030
B3: TIPO DE DOCUMENTO FORMATO | R3: PROCESO APOYO | AG3: VERSIÓN 003
A6: FECHA: PRESUPUESTO MES ACTUAL 2.021
A7: CAPEX Y/O ACTIVOS FIJOS
A8: DESCRIPCION | B8: Q | C8: CALL CENTER | D8: Q | E8: HOSPITALIZ | F8: Q | G8: UCI | H8: Q | I8: CIRUGIA | J8: Q | K8: FARMACIA | L8: Q | M8: MTTO | N8: Q | O8: SISTEMAS | P8: Q | Q8: BIOTECNOLOGIA | R8: Q | S8: FACT Y CTAS MEDICAS | T8: Q | U8: T. HUMANO - SALUD OCUP | V8: Q | W8: MERCADEO Y SIAU | X8: Q | Y8: FINANCIERA | Z8: Q | AA8: DIR MEDICA | AB8: Q | AC8: DIR ADMINISTRATIVA | AD8: Q | AE8: CALIDAD | AF8: Q | AG8: GERENCIA
A11: TOTAL CAPEX Y/O ACTIVOS FIJOS CUBA | C11: =SUM(C9:C10) -> 0 | E11: =SUM(E9:E10) -> 0 | G11: =SUM(G9:G10) -> 0 | I11: =SUM(I9:I10) -> 0 | K11: =SUM(K9:K10) -> 0 | M11: =SUM(M9:M10) -> 0 | O11: =SUM(O9:O10) -> 0 | Q11: =SUM(Q9:Q10) -> 0 | S11: =SUM(S9:S10) -> 0 | U11: =SUM(U9:U10) -> 0 | W11: =SUM(W9:W10) -> 0 | Y11: =SUM(Y9:Y10) -> 0 | AA11: =SUM(AA9:AA10) -> 0 | AC11: =SUM(AC9:AC10) -> 0 | AE11: =SUM(AE9:AE10) -> 0 | AG11: =SUM(AG9:AG10) -> 0 | AH11: =SUM(B11:AG11) -> 0
AA12: (-) EJECUCION PRESUPUESTAL DE CUBA EN MES ANTERIOR | AH12: 0
AB13: DIFERENCIA | AH13: =AH11-AH12 -> 0
A15: ADECUACIONES E INSTALACIONES
A16: DESCRIPCION | B16: Q | C16: CALL CENTER | D16: Q | E16: HOSPITALIZ | F16: Q | G16: UCI | H16: Q | I16: CIRUGIA | K16: FARMACIA | L16: Q | M16: MTTO | N16: Q | O16: SISTEMAS | P16: Q | Q16: BIOTECNOLOGIA | R16: Q | S16: FACT Y CTAS MEDICAS | T16: Q | U16: T. HUMANO - SALUD OCUP | V16: Q | W16: MERCADEO Y SIAU | X16: Q | Y16: FINANCIERA | Z16: Q | AA16: DIR MEDICA | AB16: Q | AC16: DIR ADMINISTRATIVA | AD16: Q | AE16: CALIDAD | AF16: Q | AG16: GERENCIA
A19: TOTAL ADECUACIONES CUBA | C19: =SUM(C17:C18) -> 0 | E19: =SUM(E17:E18) -> 0 | G19: =SUM(G17:G18) -> 0 | I19: =SUM(I17:I18) -> 0 | K19: =SUM(K17:K18) -> 0 | M19: =SUM(M17:M18) -> 0 | O19: =SUM(O17:O18) -> 0 | Q19: =SUM(Q17:Q18) -> 0 | S19: =SUM(S17:S18) -> 0 | U19: =SUM(U17:U18) -> 0 | W19: =SUM(W17:W18) -> 0 | Y19: =SUM(Y17:Y18) -> 0 | AA19: =SUM(AA17:AA18) -> 0 | AC19: =SUM(AC17:AC18) -> 0 | AE19: =SUM(AE17:AE18) -> 0 | AG19: =SUM(AG17:AG18) -> 0 | AH19: =SUM(B19:AG19) -> 0
AA20: (-) EJECUCION PRESUPUESTAL DE CUBA EN MES ANTERIOR | AH20: 0
AB21: DIFERENCIA | AH21: =AH19-AH20 -> 0
A23: GENERALES MTTO Y REPARACIONES
A24: DESCRIPCION | B24: Q | C24: CALL CENTER | D24: Q | E24: HOSPITALIZ | F24: Q | G24: UCI | H24: Q | I24: CIRUGIA | J24: Q | K24: FARMACIA | L24: Q | M24: MTTO | N24: Q | O24: SISTEMAS | P24: Q | Q24: BIOTECNOLOGIA | R24: Q | S24: FACT Y CTAS MEDICAS | T24: Q | U24: T. HUMANO - SALUD OCUP | V24: Q | W24: MERCADEO Y SIAU | X24: Q | Y24: FINANCIERA | Z24: Q | AA24: DIR MEDICA | AB24: Q | AC24: DIR ADMINISTRATIVA | AD24: Q | AE24: CALIDAD | AF24: Q | AG24: GERENCIA
A27: GASTOS VARIOS CAJA GENERAL
A28: GASTOS VARIOS CAJA MENOR
A29: TOTAL GENERALES CUBA | C29: =SUM(C25:C28) -> 0 | E29: =SUM(E25:E28) -> 0 | G29: =SUM(G25:G28) -> 0 | I29: =SUM(I25:I28) -> 0 | K29: =SUM(K25:K28) -> 0 | M29: =SUM(M25:M28) -> 0 | O29: =SUM(O25:O28) -> 0 | Q29: =SUM(Q25:Q28) -> 0 | S29: =SUM(S25:S28) -> 0 | U29: =SUM(U25:U28) -> 0 | W29: =SUM(W25:W28) -> 0 | Y29: =SUM(Y25:Y28) -> 0 | AA29: =SUM(AA25:AA28) -> 0 | AC29: =SUM(AC25:AC28) -> 0 | AE29: =SUM(AE25:AE28) -> 0 | AG29: =SUM(AG25:AG28) -> 0 | AH29: =SUM(B29:AG29) -> 0
AA30: (-) EJECUCION PRESUPUESTAL DE CUBA EN MES ANTERIOR | AH30: 0
AB31: DIFERENCIA | AH31: =AH29-AH30 -> 0
A33: SUMINISTROS E INSUMOS
A34: DESCRIPCION | B34: Q | C34: CALL CENTER | D34: Q | E34: HOSPITALIZ | F34: Q | G34: UCI | H34: Q | I34: CIRUGIA | K34: FARMACIA | L34: Q | M34: MTTO | N34: Q | O34: SISTEMAS | P34: Q | Q34: BIOTECNOLOGIA | R34: Q | S34: FACT Y CTAS MEDICAS | T34: Q | U34: T. HUMANO - SALUD OCUP | V34: Q | W34: MERCADEO Y SIAU | X34: Q | Y34: FINANCIERA | Z34: Q | AA34: DIR MEDICA | AB34: Q | AC34: DIR ADMINISTRATIVA | AD34: Q | AE34: CALIDAD | AF34: Q | AG34: GERENCIA
A35: ASEO Y DESINFECCIÓN (DISTRIMAS - HOME CLEAN - DISPAPELES - PLASTICOS PEREIRA - RECIPLASTIC - PROVEER)
A36: LITOGRAFÍA (AGENCIA ROMANA) | AI36: =SUM(C36:AG36) -> 0
A37: PAPELERIA (DISPAPELES, PAPELERIA Y DISTRIBUCIONES COLOMBIA SAS, PAPELERIA LOS MAYORISTAS) | AI37: =SUM(C37:AG37) -> 0
A38: SERVICIO TRANSFUSIONAL - BANCO DE SANGRE (FUNDACION HEMATOLOGICA - HOSPITAL SAN JORGE- HEMOCENTRO DEL OTÚN - HEMOLIFE)
A39: TOTAL SUMINISTROS CUBA | C39: =SUM(C35:C38) -> 0 | E39: =SUM(E35:E38) -> 0 | G39: =SUM(G35:G38) -> 0 | I39: =SUM(I35:I38) -> 0 | K39: =SUM(K35:K38) -> 0 | M39: =SUM(M35:M38) -> 0 | O39: =SUM(O35:O38) -> 0 | Q39: =SUM(Q35:Q38) -> 0 | S39: =SUM(S35:S38) -> 0 | U39: =SUM(U35:U38) -> 0 | W39: =SUM(W35:W38) -> 0 | Y39: =SUM(Y35:Y38) -> 0 | AA39: =SUM(AA35:AA38) -> 0 | AC39: =SUM(AC35:AC38) -> 0 | AE39: =SUM(AE35:AE38) -> 0 | AG39: =SUM(AG35:AG38) -> 0 | AH39: =SUM(B39:AG39) -> 0
AA40: (-) EJECUCION PRESUPUESTAL DE CUBA EN MES ANTERIOR | AH40: 0
AB41: DIFERENCIA | AH41: =AH39-AH40 -> 0
A43: HONORARIOS
A44: DESCRIPCION | B44: Q | C44: CALL CENTER | D44: Q | E44: HOSPITALIZ | F44: Q | G44: UCI | H44: Q | I44: CIRUGIA | K44: FARMACIA | L44: Q | M44: MTTO | N44: Q | O44: SISTEMAS | P44: Q | Q44: BIOTECNOLOGIA | R44: Q | S44: FACT Y CTAS MEDICAS | T44: Q | U44: T. HUMANO - SALUD OCUP | V44: Q | W44: MERCADEO Y SIAU | X44: Q | Y44: FINANCIERA | Z44: Q | AA44: DIR MEDICA | AB44: Q | AC44: DIR ADMINISTRATIVA | AD44: Q | AE44: CALIDAD | AF44: Q | AG44: GERENCIA
A45: ALVAREZ RIOS JUAN GUILLERMO
A46: FORTICH BARRIOS FERNAN JOSE
A47: TOTAL HONORARIOS MEDICOS Y ESPECIALISTAS | C47: =SUM(C45:C46) -> 0 | E47: =SUM(E45:E46) -> 0 | G47: =SUM(G45:G46) -> 0 | I47: =SUM(I45:I46) -> 0 | K47: =SUM(K45:K46) -> 0 | M47: =SUM(M45:M46) -> 0 | O47: =SUM(O45:O46) -> 0 | Q47: =SUM(Q45:Q46) -> 0 | S47: =SUM(S45:S46) -> 0 | U47: =SUM(U45:U46) -> 0 | W47: =SUM(W45:W46) -> 0 | Y47: =SUM(Y45:Y46) -> 0 | AA47: =SUM(AA45:AA46) -> 0 | AC47: =SUM(AC45:AC46) -> 0 | AE47: =SUM(AE45:AE46) -> 0 | AG47: =SUM(AG45:AG46) -> 0 | AH47: =SUM(B47:AG47) -> 0
AA48: (-) EJECUCION PRESUPUESTAL EN MES ANTERIOR | AH48: 0
AB49: DIFERENCIA | AH49: =AH47-AH48 -> 0
A51: TOTAL | C51: =C11+C39+C29+C19+C47 -> 0 | E51: =E11+E39+E29+E19+E47 -> 0 | G51: =G11+G39+G29+G19+G47 -> 0 | I51: =I11+I39+I29+I19+I47 -> 0 | K51: =K11+K39+K29+K19+K47 -> 0 | M51: =M11+M39+M29+M19+M47 -> 0 | O51: =O11+O39+O29+O19+O47 -> 0 | Q51: =Q11+Q39+Q29+Q19+Q47 -> 0 | S51: =S11+S39+S29+S19+S47 -> 0 | U51: =U11+U39+U29+U19+U47 -> 0 | W51: =W11+W39+W29+W19+W47 -> 0 | Y51: =Y11+Y39+Y29+Y19+Y47 -> 0 | AA51: =AA11+AA39+AA29+AA19+AA47 -> 0 | AC51: =AC11+AC39+AC29+AC19+AC47 -> 0 | AE51: =AE11+AE39+AE29+AE19+AE47 -> 0 | AG51: =AG11+AG39+AG29+AG19+AG47 -> 0 | AH51: =SUM(B51:AG51) -> 0
AA52: (-) EJECUCION PRESUPUESTAL DE CUBA EN MES ANTERIOR | AH52: 0
AB53: DIFERENCIA TOTAL CUBA | AH53: =AH51-AH52 -> 0

Sheet MEGACENTRO
B1: NOMBRE EJECUCIÓN PRESUPUESTAL | AO1: CÓDIGO 09-FT-030
B3: TIPO DE DOCUMENTO FORMATO | V3: PROCESO APOYO | AO3: VERSIÓN 003
A6: FECHA: PRESUPUESTO A MES ACTUAL 2.021
A7: CAPEX Y/O ACTIVOS FIJOS
A8: DESCRIPCION | B8: Q | C8: CONSULTA | D8: Q | E8: HOSPITALIZ | F8: Q | G8: TRANSF - PATOLOG UCI ADULTOS | H8: Q | I8: UCI PEDIATRICA - PARTOS - NEONATOS | J8: Q | K8: CIRUGIA | L8: Q | M8: URGENCIAS | N8: Q | O8: ONCOLOGIA | P8: Q | Q8: FARMACIA | R8: Q | S8: MTTO | T8: Q | U8: SISTEMAS | V8: Q | W8: BIOTECNOLOGIA | X8: Q | Y8: FACT Y CTAS MEDICAS | Z8: Q | AA8: T. HUMANO - S. OCUPACIONAL | AB8: Q | AC8: MERCADEO Y SIAU | AD8: Q | AE8: FINANCIERA | AF8: Q | AG8: DIR MEDICA | AH8: Q | AI8: DIR ADMINISTRATIVA | AJ8: Q | AK8: PROYECTOS | AL8: Q | AM8: CALIDAD | AN8: Q | AO8: GERENCIA
A11: TOTAL CAPEX Y/O ACTIVOS FIJOS MEGACENTRO | C11: =SUM(C9:C10) -> 0 | E11: =SUM(E9:E10) -> 0 | G11: =SUM(G9:G10) -> 0 | I11: =SUM(I9:I10) -> 0 | K11: =SUM(K9:K10) -> 0 | M11: =SUM(M9:M10) -> 0 | O11: =SUM(O9:O10) -> 0 | Q11: =SUM(Q9:Q10) -> 0 | S11: =SUM(S9:S10) -> 0 | U11: =SUM(U9:U10) -> 0 | W11: =SUM(W9:W10) -> 0 | Y11: =SUM(Y9:Y10) -> 0 | AA11: =SUM(AA9:AA10) -> 0 | AC11: =SUM(AC9:AC10) -> 0 | AE11: =SUM(AE9:AE10) -> 0 | AG11: =SUM(AG9:AG10) -> 0 | AI11: =SUM(AI9:AI10) -> 0 | AK11: =SUM(AK9:AK10) -> 0 | AM11: =SUM(AM9:AM10) -> 0 | AO11: =SUM(AO9:AO10) -> 0 | AP11: =SUM(C11:AO11) -> 0
AI12: (-) EJECUCION PRESUPUESTAL DE MEGACENTRO EN MES ANTERIOR | AP12: 0
AJ13: DIFERENCIA | AP13: =AP11-AP12 -> 0
A15: ADECUACIONES E INSTALACIONES
A16: DESCRIPCION | B16: Q | C16: CONSULTA | D16: Q | E16: HOSPITALIZ | F16: Q | G16: TRANSF - PATOLOG UCI ADULTOS | H16: Q | I16: UCI PEDIATRICA | J16: Q | K16: CIRUGIA | L16: Q | M16: URGENCIAS | N16: Q | O16: ONCOLOGIA | P16: Q | Q16: FARMACIA | R16: Q | S16: MTTO | T16: Q | U16: SISTEMAS | V16: Q | W16: BIOTECNOLOGIA | X16: Q | Y16: FACT Y CTAS MEDICAS | Z16: Q | AA16: T. HUMANO - S. OCUPACIONAL | AB16: Q | AC16: MERCADEO Y SIAU | AD16: Q | AE16: FINANCIERA | AF16: Q | AG16: DIR MEDICA | AH16: Q | AI16: DIR ADMINISTRATIVA | AJ16: Q | AK16: PROYECTOS | AL16: Q | AM16: CALIDAD | AN16: Q | AO16: GERENCIA
A19: TOTAL ADECUACIONES MEGACENTRO | C19: =SUM(C17:C18) -> 0 | E19: =SUM(E17:E18) -> 0 | G19: =SUM(G17:G18) -> 0 | I19: =SUM(I17:I18) -> 0 | K19: =SUM(K17:K18) -> 0 | M19: =SUM(M17:M18) -> 0 | O19: =SUM(O17:O18) -> 0 | Q19: =SUM(Q17:Q18) -> 0 | S19: =SUM(S17:S18) -> 0 | U19: =SUM(U17:U18) -> 0 | W19: =SUM(W17:W18) -> 0 | Y19: =SUM(Y17:Y18) -> 0 | AA19: =SUM(AA17:AA18) -> 0 | AC19: =SUM(AC17:AC18) -> 0 | AE19: =SUM(AE17:AE18) -> 0 | AG19: =SUM(AG17:AG18) -> 0 | AI19: =SUM(AI17:AI18) -> 0 | AK19: =SUM(AK17:AK18) -> 0 | AM19: =SUM(AM17:AM18) -> 0 | AO19: =SUM(AO17:AO18) -> 0 | AP19: =SUM(C19:AO19) -> 0
AI20: (-) EJECUCION PRESUPUESTAL DE MEGACENTRO EN MES ANTERIOR | AP20: 0
AJ21: DIFERENCIA | AP21: =AP19-AP20 -> 0
A23: GENERALES MTTO Y REPARACIONES
A24: DESCRIPCION | B24: Q | C24: CONSULTA | D24: Q | E24: HOSPITALIZ | F24: Q | G24: TRANSF - PATOLOG UCI ADULTOS | H24: Q | I24: UCI PEDIATRICA | J24: Q | K24: CIRUGIA | L24: Q | M24: URGENCIAS | N24: Q | O24: ONCOLOGIA | P24: Q | Q24: FARMACIA | R24: Q | S24: MTTO | T24: Q | U24: SISTEMAS | V24: Q | W24: BIOTECNOLOGIA | X24: Q | Y24: FACT Y CTAS MEDICAS | Z24: Q | AA24: T. HUMANO - S. OCUPACIONAL | AB24: Q | AC24: MERCADEO Y SIAU | AD24: Q | AE24: FINANCIERA | AF24: Q | AG24: DIR MEDICA | AH24: Q | AI24: DIR ADMINISTRATIVA | AJ24: Q | AK24: PROYECTOS | AL24: Q | AM24: CALIDAD | AN24: Q | AO24: GERENCIA
A29: GASTOS VARIOS CAJA GENERAL
A30: GASTOS VARIOS CAJA MENOR
A31: TOTAL GENERALES MEGACENTRO | C31: =SUM(C25:C30) -> 0 | E31: =SUM(E25:E30) -> 0 | G31: =SUM(G25:G30) -> 0 | I31: =SUM(I25:I30) -> 0 | K31: =SUM(K25:K30) -> 0 | M31: =SUM(M25:M30) -> 0 | O31: =SUM(O25:O30) -> 0 | Q31: =SUM(Q25:Q30) -> 0 | S31: =SUM(S25:S30) -> 0 | U31: =SUM(U25:U30) -> 0 | W31: =SUM(W25:W30) -> 0 | Y31: =SUM(Y25:Y30) -> 0 | AA31: =SUM(AA25:AA30) -> 0 | AC31: =SUM(AC25:AC30) -> 0 | AE31: =SUM(AE25:AE30) -> 0 | AG31: =SUM(AG25:AG30) -> 0 | AI31: =SUM(AI25:AI30) -> 0 | AK31: =SUM(AK25:AK30) -> 0 | AM31: =SUM(AM25:AM30) -> 0 | AO31: =SUM(AO25:AO30) -> 0 | AP31: =SUM(C31:AO31) -> 0
AI32: (-) EJECUCION PRESUPUESTAL DE MEGACENTRO EN MES ANTERIOR | AP32: 0
AJ33: DIFERENCIA | AP33: =AP31-AP32 -> 0
A35: SUMINISTROS E INSUMOS
A36: DESCRIPCION | B36: Q | C36: CONSULTA | D36: Q | E36: HOSPITALIZ | F36: Q | G36: TRANSF - PATOLOG UCI ADULTOS | H36: Q | I36: UCI PEDIATRICA - PARTOS - NEONATOS | J36: Q | K36: CIRUGIA | L36: Q | M36: URGENCIAS | N36: Q | O36: ONCOLOGIA | P36: Q | Q36: FARMACIA | R36: Q | S36: MTTO | T36: Q | U36: SISTEMAS | V36: Q | W36: BIOTECNOLOGIA | X36: Q | Y36: FACT Y CTAS MEDICAS | Z36: Q | AA36: T. HUMANO - S. OCUPACIONAL | AB36: Q | AC36: MERCADEO Y SIAU | AD36: Q | AE36: FINANCIERA | AF36: Q | AG36: DIR MEDICA | AH36: Q | AI36: DIR ADMINISTRATIVA | AJ36: Q | AK36: PROYECTOS | AL36: Q | AM36: CALIDAD | AN36: Q | AO36: GERENCIA
A37: ASEO Y DESINFECCIÓN (DISTRIMAS - HOME CLEAN - DISPAPELES - PLASTICOS PEREIRA - RECIPLASTIC)
A38: COMBUSTIBLE AMBULANCIAS (DISTRACOM)
A39: COMBUSTIBLE VEHICULOs (DISTRACOM)
A40: LITOGRAFIA (AGENCIA ROMANA) | AQ40: =SUM(B40:AO40) -> 0
A41: PAPELERIA (DISPAPELES, PAPELERIA Y DISTRIBUCIONES COLOMBIA SAS, PAPELERIA LOS MAYORISTAS) | AQ41: =SUM(B41:AO41) -> 0
A42: SERVICIO TRANSFUSIONAL - BANCO DE SANGRE (FUNDACION HEMATOLOGICA - HOSPITAL SAN JORGE- HEMOCENTRO DEL OTÚN - HEMOLIFE)
A43: TOTAL SUMINISTROS MEGACENTRO | AP43: =SUM(C43:AO43) -> 0
AI44: (-) EJECUCION PRESUPUESTAL DE MEGACENTRO EN MES ANTERIOR | AP44: 0
AJ45: DIFERENCIA | AP45: =AP43-AP44 -> 0
A47: HONORARIOS
A48: DESCRIPCION | B48: Q | C48: CONSULTA | D48: Q | E48: HOSPITALIZ | F48: Q | G48: TRANSF - PATOLOG UCI ADULTOS | H48: Q | I48: UCI PEDIATRICA - PARTOS - NEONATOS | J48: Q | K48: CIRUGIA | L48: Q | M48: URGENCIAS | N48: Q | O48: ONCOLOGIA | P48: Q | Q48: FARMACIA | R48: Q | S48: MTTO | T48: Q | U48: SISTEMAS | V48: Q | W48: BIOTECNOLOGIA | X48: Q | Y48: FACT Y CTAS MEDICAS | Z48: Q | AA48: T. HUMANO - S. OCUPACIONAL | AB48: Q | AC48: MERCADEO Y SIAU | AD48: Q | AE48: FINANCIERA | AF48: Q | AG48: DIR MEDICA | AH48: Q | AI48: DIR ADMINISTRATIVA | AJ48: Q | AK48: PROYECTOS | AL48: Q | AM48: CALIDAD | AN48: Q | AO48: GERENCIA
A49: ABELLO MUÑOZ JOHN JAIRO | AP49: 30000
A50: ACTIVATE MED
A51: AGG HEART SAS
A52: AGUDELO QUINTANA ALEJANDRO
A53: ALARCON SANCHEZ MERCEDES (NUEVA)
A54: ALVAREZ GOMEZ YEFERSON CARLOS
A55: ALVAREZ TAPIAS CAROLINA
A56: ALVAREZ TOLEDO ORLANDO
A57: ANGEL ECHEVERRY LUZ STELLA
A58: ARANGO CHRISTINE VANESSA | AP58: 20000
A59: ARIAS FLOREZ MAURICIO
A60: ARISTIZABAL ROA DIANA NEIZA
A61: ARTEAGA FERREIRA CAMILO ANDRES
A62: AUDIOCOM
A63: AUDIOMEDIC / COY MORA LUZ MARINA
A64: AVENDAÑO PELAEZ ELIANA MARIA
A65: BARBOSA BALAGUERA CHRISTIAN CAMILO
A66: BARRIOS PINEDA MARILUZ
A67: BELTRAN BARRERA CESAR AUGUSTO
A68: BENAVIDES TRUJILLO MARIA CAROLINA
A69: BLANCO SANCHEZ JUAN CAMILO
A70: BOHORQUEZ BEDOYA JUAN DAVID
A71: BRACAMONTE TAGLIAFERRO GIANNINA
A72: CABRERA RIASCOS ELKIN YASMANY
A73: CADAVID ANTONIO JAVIER
A74: CALVO TORRES LUIS FELIPE
A75: CANO SALAZAR ALVARO
A76: CARDIOSAM | AP76: 30000
A77: CARDONA DEAZA JOSE LUIS
A78: CARDONA GAVIRIA HERNAN
A79: CARVAJAL ACOSTA LYNDA IVETTE
A80: CASTRO ANGULO OSCAR IVAN
A81: CASTRO VARGAS ADRIANA SOFIA
A82: CAVIEDES CAÑON YILMAR FREDY
A83: CENTRO MEDICO IMBANACO
A84: CEREI
A85: COBO ALVARADO ALBA RUTH
A86: CONTROL D IPS
A87: CUELLAR CORTES CESAR ENRIQUE
A88: DARSALUD
A89: DELGADO CASTRILLON EDGAR DE JESUS
A90: DIAZ & OCAMPO ABOGADOS | AP90: 25000
A91: DIAZ OCAMPO DAVID (NUEVO)
A92: DIAZ RIVERA MARIA CAROLINA
A93: ENRIQUEZ CALVACHE HECTOR ANDRES | AP93: 15500
A94: ERAZO CORDOBA JUAN GUILLERMO
A95: ESTEVEZ DURAN ADRIANA
A96: FARIAS LIMA ARELYS ANDREINA
A97: FERNANDEZ CORDOBES CARLOS HERNAN
A98: FORBA MEDICAL
A99: FORERO MORENO DAMIAN ANTONIO
A100: FORTICH BARRIOS FERNAN JOSE
A101: FRANCO GUTIERREZ CAROLINA
A102: GARCIA ACOSTA RAMIRO ALONSO
A103: GARCIA CARDENAS LUZ ANGELA
A104: GARCIA FREITAG MARIA ANGELICA
A105: GARCIA MURCIA RAFAEL | AP105: 25000
A106: GARCIA SANCHEZ RAFAEL
A107: GARCIA STACEY DIANA CATALINA
A108: GAVIRIA RINCON GERMAN
A109: GAVIRIA Y PEREZ S.A.S
A110: GIL MONTOYA LEONARDO FABIO
A111: GOMEZ LOPEZ GUILLERMO ANDRES
A112: GOMEZ SANCHEZ TATIANA
A113: GONZALEZ AREVALO ADRIANA PATRICIA
A114: GONZALEZ MONTES JUAN ANDRES
A115: GONZALEZ URREA MAURICIO
A116: GUERRA RESTREPO FABIO DE JESUS
A117: GUERRERO MOLINA HERNAN GUILLERMO
A118: GUEVARA GUZMAN JAIRO ALFREDO
A119: GUTIERREZ PUENTES SANDRA PATRICIA | AP119: 15500
A120: HEMATO ONCOLOGOS
A121: HERNANDEZ MEDINA FABIAN
A122: HERRERA ORTIZ GILBERTO | AP122: 15500
A123: HERRERA RENDON DIMAS FELIPE | AP123: 15500
A124: HIGUITA VALENCIA ANDRES MAURICIO
A125: IBARRA QUIÑONES MELISA
A126: INSTITUTO CALDENSE DE PATOLOGIA
A127: INSTITUTO DE EPILEPSIA Y PARKINSON OC 4984, 5544, 5403
A128: INVERSIONES MEDICAS S.A.S
A129: ISAZA CARDONA ALVARO
A130: ISAZA VALLEJO CARLOS ARTURO
A131: IZQUIERDO CORRALES CARLOS ARTURO
A132: JIMENEZ COQUECO CESAR AUGUSTO
A133: JIMENEZ MONTOYA JUAN MANUEL
A134: JOJOA NIÑO JOHANNA ANDREA
A135: JULIAO MARMOLEJO ROBERTO
A136: LABORATORIO DE ELECTROFISIOLOGIA OCULAR
A137: LAGOS RAMIREZ ERIC HESSLICK
A138: LOPEZ ATEHORTUA DAVID FELIPE
A139: LOPEZ ISANOA JORGE DARIO
A140: LOPEZ SANCHEZ JORGE AUGUSTO
A141: LOPEZ VELANDIA JOSUE GUILLERMO
A142: LOPEZ VILLEGAS VICTOR JAIME
A143: LOPEZ ZULUAGA JORGE IVAN
A144: MANJARRES GISELLA PATRICIA (NUEVA)
A145: MANSO DEL RÍO CLARA INÉS
A146: MARIN CERON ANDRES
A147: MARIN GALLEGO GINA LORENA
A148: MARQUEZ CARDONA LUISA FERNANDA
A149: MARULANDA DURANGO LORSIS ANTONIO
A150: MEJIA VELASQUEZ LUIS ROBERTO
A151: MEZA BASTIDAS RAUL
A152: MIRANDA ROSERO HAROLD | AP152: 15500
A153: MOLINA VELASQUEZ JUAN SANTIAGO
A154: MONTOYA BARRETO JAIME FERNANDO
A155: MONTOYA NAVARRETE FERNANDO
A156: MORA MERCHAN MAURICIO
A157: MORA POSADA LUIS RICARDO
A158: MORALES PARDO CAMILO
A159: MOSQUERA VALENCIA TULIO HERNAN
A160: MR VISIÓN
A161: MURGUEITIO URIBE ANDRES FELIPE
A162: NAVA RODRIGUEZ MARGARITA MARIA
A163: NIETO BAQUERO OCTAVIO AUGUSTO
A164: NIÑO DUARTE DAVID JOSE
A165: NOVA MUÑOZ ALEJANDRA
A166: OBANDO JAMAUCA TERESA DEL SOCORRO
A167: OCAMPO LONDOÑO ADRIANA DEL PILAR
A168: OLAYA VILLAREAL GUILLERMO
A169: ONCOSALUD S.A.S.
A170: ORDOÑEZ DIAZ KAREN MELISSA
A171: ORREGO TORO LUZ ANGELA
A172: ORTHODIAGNOSTICAR
A173: OSORIO GUZMAN JOSE LUIS OC 5115
A174: OSORIO PINZON JOHANA VANESSA
A175: OSPINA JIMENEZ JORGE IVAN
A176: OSPINA OSORIO JEISSON
A177: OSPINA RIOS JENNY
A178: OSPINA SERRANO ALEJANDRO
A179: PEÑA LEDESMA MARIA DEL PILAR | AP179: 30000
A180: PERALTA PINEDA CESAR AUGUSTO
A181: PERDOMO VILLA ALONSO
A182: PEREZ LOPEZ JOHN JAIRO
A183: PEREZ QUIJANO FRANKLIN ORLANDO
A184: PERINATAL CARE SAS
A185: PIAMONTE PARDO JOHANNA ELIZABETH
A186: PIEDRAHITA GUTIERREZ DANY LEANDRO
A187: PINZON GOMEZ JOSE FRANCISCO
A188: PORTOCARRERO YEPES LUIS EDUARDO
A189: PRIETO RAYO NATALIA
A190: PULGARIN DIAZ JORGE IVAN
A191: RAMIREZ ALVAREZ GINA MARCELA
A192: RAMIREZ CEBALLOS MARIANA
A193: RAMIREZ CUELLAR ADONIS TUPAC
A194: RAMIREZ JIMENEZ JUAN JOSE
A195: RAMIREZ LUISA FERNANDA
A196: RAMIREZ OSORIO JULIAN ALEJANDRO
A197: RAMIREZ PALACIO JAIRO
A198: RAMIREZ PEREZ LISBETH PATRICIA
A199: RAMIREZ PEREZ NADYA JANETH
A200: RAMOS ULLOA JOSE GUSTAVO
A201: RESPIREMOS | AP201: 15500
A202: RESTREPO MEJIA ALBERTO
A203: RETINOLOGOS DE OCCIDENTE
A204: REVELO BAMBAGUE JENNY PAOLA
A205: REYES ROBAYO JULIO CESAR
A206: REYES VALLEJO VICTOR HENRY
A207: RG VISIÓN
A208: RIVERA RINCON MAURICIO ALEJANDRO
A209: RIVILLAS SUAREZ VIVIANA LUCIA
A210: RODRIGUEZ ACEVEDO ELIANA
A211: RODRIGUEZ GALVIZ HENRY
A212: ROMERO BERRIO FABIAN ALBERTO
A213: ROMERO FLOREZ DIANA MARIA
A214: RUIZ DEL VALLE MARTIN AUGUSTO
A215: SALAZAR MARTINEZ CRUZ KATHERINE
... 35 more rows

Sheet TORRE 3
B1: NOMBRE EJECUCIÓN PRESUPUESTAL | M1: CÓDIGO 09-FT-030
B3: TIPO DE DOCUMENTO FORMATO | I3: PROCESO APOYO | M3: VERSIÓN 003
A6: FECHA: PRESUPUESTO MES ACTUAL 2.021
A7: CAPEX Y/O ACTIVOS FIJOS
A8: DESCRIPCION | B8: Q | C8: CONSULTA | D8: Q | E8: HOSPITALIZACION | F8: Q | G8: HOSPITALIZACION PEDIATRICA | H8: Q | I8: PARTOS | J8: Q | K8: NEONATOS | L8: Q | M8: CIRUGIA
A11: TOTAL CAPEX Y/O ACTIVOS FIJOS TORRE 3 | C11: =SUM(C9:C10) -> 0 | E11: =SUM(E9:E10) -> 0 | G11: =SUM(G9:G10) -> 0 | I11: =SUM(I9:I10) -> 0 | K11: =SUM(K9:K10) -> 0 | M11: =SUM(M9:M10) -> 0 | N11: =SUM(C11:M11) -> 0
G12: (-) EJECUCION PRESUPUESTAL DE TORRE 3 EN MES ANTERIOR | N12: 0
H13: DIFERENCIA | N13: =N11-N12 -> 0
A15: ADECUACIONES E INSTALACIONES
A16: DESCRIPCION | B16: Q | C16: CONSULTA | D16: Q | E16: HOSPITALIZACION | F16: Q | G16: HOSPITALIZACION PEDIATRICA | H16: Q | I16: PARTOS | J16: Q | K16: NEONATOS | L16: Q | M16: CIRUGIA
A19: TOTAL ADECUACIONES TORRE 3 | C19: =SUM(C17:C18) -> 0 | E19: =SUM(E17:E18) -> 0 | G19: =SUM(G17:G18) -> 0 | I19: =SUM(I17:I18) -> 0 | K19: =SUM(K17:K18) -> 0 | M19: =SUM(M17:M18) -> 0 | N19: =SUM(C19:M19) -> 0
G20: (-) EJECUCION PRESUPUESTAL DE TORRE 3 EN MES ANTERIOR | N20: 0
H21: DIFERENCIA | N21: =N19-N20 -> 0
A23: GENERALES MTTO Y REPARACIONES
A24: DESCRIPCION | B24: Q | C24: CONSULTA | D24: Q | E24: HOSPITALIZACION | F24: Q | G24: HOSPITALIZACION PEDIATRICA | H24: Q | I24: PARTOS | J24: Q | K24: NEONATOS | L24: Q | M24: CIRUGIA
A25: ADMINISTRACION Y PARQUEADEROS LOCALES 13-14-15-16-PISO 5 (COMPLEJO MEDICO MEGACENTRO PH)
A26: ARRENDAMIENTO CONSULTORIOS 708 (CARMENZA BOTERO SALAZAR)
A27: ARRENDAMIENTO Y ADMON CONSULTORIO 706 (MIRANDA ROSERO JORGE ARTURO, COMPLEJO MEDICO MEGACENTRO PH)
A28: ARRENDAMIENTO LOCALES 13-14-15-16- PISO 5 (BOTERO GONZALES & CIA)
A29: ARRENDAMIENTO Y ADMON CONSULTORIO 705 (VASQUEZ OSORIO PAOLA, COMPLEJO MEDICO MEGACENTRO PH))
A30: SERVICIO ACUEDUCTO Y ALCANTARILLADO CONSULTORIO 706
A31: SERVICIO ENERGIA CONSULTORIO 706
A32: SERVICIO ACUEDUCTO Y ALCANTARILLADO PISO 5
A33: SERVICIO ACUEDUCTO Y ALCANTARILLADO CONSULTORIOS - TORRE 3 708 - 705
A34: SERVICIO ENERGIA CONSULTORIOS 708 - 705
A35: TOTAL GENERALES TORRE 3 | C35: =SUM(C25:C34) -> 0 | E35: =SUM(E25:E34) -> 0 | G35: =SUM(G25:G34) -> 0 | I35: =SUM(I25:I34) -> 0 | K35: =SUM(K25:K34) -> 0 | M35: =SUM(M25:M34) -> 0 | N35: =SUM(C35:M35) -> 0
G36: (-) EJECUCION PRESUPUESTAL DE TORRE 3 EN MES ANTERIOR | N36: 0
H37: DIFERENCIA | N37: =N35-N36 -> 0
A39: TOTAL | C39: =C11+C35+C19 -> 0 | E39: =E11+E35+E19 -> 0 | G39: =G11+G35+G19 -> 0 | I39: =I11+I35+I19 -> 0 | K39: =K11+K35+K19 -> 0 | M39: =M11+M35+M19 -> 0 | N39: =SUM(C39:M39) -> 0
G40: (-) EJECUCION PRESUPUESTAL DE TORRE 3 EN MES ANTERIOR | N40: 0
H41: DIFERENCIA | N41: =N39-N40 -> 0

Sheet OVAL
B1: NOMBRE EJECUCIÓN PRESUPUESTAL | H1: CÓDIGO 09-FT-030
B3: TIPO DE DOCUMENTO FORMATO | E3: PROCESO APOYO | H3: VERSIÓN 003
A5: FECHA: PRESUPUESTO A MES ACTUAL 2.021
A6: CAPEX Y/O ACTIVOS FIJOS
A7: DESCRIPCION | G7: Q | H7: CONSULTA
A10: TOTAL CAPEX Y/O ACTIVOS FIJOS OVAL | H10: =SUM(H8:H9) -> 0 | I10: =H10 -> 0
A11: (-) EJECUCION PRESUPUESTAL DE OVAL EN MES ANTERIOR | I11: 0
A12: DIFERENCIA | I12: =I10-I11 -> 0
A14: ADECUACIONES E INSTALACIONES
A15: DESCRIPCION | G15: Q | H15: CONSULTA
A18: TOTAL ADECUACIONES OVAL | H18: =SUM(H16:H17) -> 0 | I18: =H18 -> 0
A19: (-) EJECUCION PRESUPUESTAL DE OVAL EN MES ANTERIOR | I19: 0
A20: DIFERENCIA | I20: =I18-I19 -> 0
A22: GENERALES MTTO Y REPARACIONES
A23: DESCRIPCION | G23: Q | H23: CONSULTA
A24: ARRENDAMIENTO CONS 901 - 902 - 903 - 904 - 905, PARQUEADEROS 4 - 9 - 21 OVAL Y RECOLECCIÓN RESIDUOS (OVAL MEDICA PROPIEDAD HORIZONTAL, MORA GUTIERREZ EDGAR ALBERTO O GUTIERREZ DE MORA ALICIA, MOYA CARRILLO CAROLINA, ESCOBAR MONTOYA JULIA INES) | G24: .
A25: SERVICIO ACUEDUCTO Y ALCANTARILLADO CONSULTORIOS 901 - 902 -903 - 904 -905
A26: RECOLECCIÓN DE RESIDUOS (EDIFICIO OVAL MEDICAL)
A27: SERVICIO LAVANDERIA (DOCLEAN)
A28: SERVICIO ENERGIA CONSULTORIOS - 901 - 902 -903 - 904 - 905
A29: SERVICIO UNE
A30: CAJA GENERAL
A31: TOTAL GENERALES OVAL | H31: =SUM(H24:H30) -> 0 | I31: =H31 -> 0
A32: (-) EJECUCION PRESUPUESTAL DE OVAL EN MES ANTERIOR | I32: 0
A33: DIFERENCIA | I33: =I31-I32 -> 0
A35: TOTAL OVAL | H35: =H10+H31+H18 -> 0 | I35: =H35 -> 0
A36: (-) EJECUCION PRESUPUESTAL DE OVAL EN MES ANTERIOR | I36: 0
A37: DIFERENCIA | I37: =I35-I36 -> 0

Sheet TORRE 2
B1: NOMBRE EJECUCIÓN PRESUPUESTAL | H1: CÓDIGO 09-FT-030
B3: TIPO DE DOCUMENTO FORMATO | E3: PROCESO APOYO | H3: VERSIÓN 003
A5: FECHA: PRESUPUESTO A MES ACTUAL 2.021
A6: CAPEX Y/O ACTIVOS FIJOS
A7: DESCRIPCION | G7: Q | H7: CONSULTA
A10: TOTAL CAPEX Y/O ACTIVOS FIJOS TORRE 2 | H10: =SUM(H8:H9) -> 0 | I10: =H10 -> 0
A11: (-) EJECUCION PRESUPUESTAL DE TORRE 2 EN MES ANTERIOR | I11: 0
A12: DIFERENCIA | I12: =I10-I11 -> 0
A14: ADECUACIONES E INSTALACIONES
A15: DESCRIPCION | G15: Q | H15: CONSULTA
A18: TOTAL ADECUACIONES TORRE 2 | H18: =SUM(H16:H17) -> 0 | I18: =H18 -> 0
A19: (-) EJECUCION PRESUPUESTAL DE TORRE 2 EN MES ANTERIOR | I19: 0
A20: DIFERENCIA | I20: =I18-I19 -> 0
A22: GENERALES MTTO Y REPARACIONES
A23: DESCRIPCION | G23: Q | H23: CONSULTA
A24: ARRENDAMIENTO, ADMINISTRACION Y RESIDUOS DE ALTO RIESGO (MEGACENTRO PINARES PROPIEDAD HORINZ, GARCIA PALACIO HECTOR)
A25: SERVICIO ACUEDUCTO Y ALCANTARILLADO CONSULTORIOS 607-1301-1302-1303
A26: SERVICIO ENERGIA CONSULTORIOS 607-1301-1032-1303
A27: CAJA GENERAL
A28: TOTAL GENERALES TORRE 2 | H28: =SUM(H24:H27) -> 0 | I28: =H28 -> 0
A29: (-) EJECUCION PRESUPUESTAL DE TORRE 2 EN MES ANTERIOR | I29: 0
A30: DIFERENCIA | I30: =I28-I29 -> 0
A32: TOTAL TORRE 2 | H32: =H10+H28+H18 -> 0 | I32: =H32 -> 0
A33: (-) EJECUCION PRESUPUESTAL DE TORRE 2 EN MES ANTERIOR | I33: 0
A34: DIFERENCIA | I34: =I32-I33 -> 0

Sheet ICONO
B1: NOMBRE EJECUCIÓN PRESUPUESTAL | Q1: CÓDIGO 09-FT-030
B3: TIPO DE DOCUMENTO FORMATO | I3: PROCESO APOYO | Q3: VERSIÓN 003
A5: FECHA: PRESUPUESTO A MES ACTUAL 2.021
A6: CAPEX Y/O ACTIVOS FIJOS
A7: DESCRIPCION | B7: Q | C7: CONSULTA | D7: Q | E7: T. HUMANO - S. OCUPACIONAL | F7: Q | G7: MERCADEO Y SIAU | H7: Q | I7: FINANCIERA | J7: Q | K7: CALIDAD | L7: Q | M7: PROYECTOS | N7: Q | O7: DIR ADMINISTRATIVA | P7: Q | Q7: GERENCIA
A10: TOTAL CAPEX Y/O ACTIVOS FIJOS ICONO | C10: =SUM(C8:C9) -> 0 | E10: =SUM(E8:E9) -> 0 | G10: =SUM(G8:G9) -> 0 | I10: =SUM(I8:I9) -> 0 | K10: =SUM(K8:K9) -> 0 | M10: =SUM(M8:M9) -> 0 | O10: =SUM(O8:O9) -> 0 | Q10: =SUM(Q8:Q9) -> 0 | R10: =SUM(C10:Q10) -> 0
A11: (-) EJECUCION PRESUPUESTAL DE ICONO EN MES ANTERIOR | R11: 0
A12: DIFERENCIA | R12: =R10-R11 -> 0
A14: ADECUACIONES E INSTALACIONES
A15: DESCRIPCION | B15: Q | C15: CONSULTA | D15: Q | E15: T. HUMANO - S. OCUPACIONAL | F15: Q | G15: MERCADEO Y SIAU | H15: Q | I15: FINANCIERA | J15: Q | K15: CALIDAD | L15: Q | M15: PROYECTOS | N15: Q | O15: DIR ADMINISTRATIVA | P15: Q | Q15: GERENCIA
A18: TOTAL ADECUACIONES ICONO | C18: =SUM(C16:C17) -> 0 | E18: =SUM(E16:E17) -> 0 | G18: =SUM(G16:G17) -> 0 | I18: =SUM(I16:I17) -> 0 | K18: =SUM(K16:K17) -> 0 | M18: =SUM(M16:M17) -> 0 | O18: =SUM(O16:O17) -> 0 | Q18: =SUM(Q16:Q17) -> 0 | R18: =SUM(C18:Q18) -> 0
A19: (-) EJECUCION PRESUPUESTAL DE ICONO EN MES ANTERIOR | R19: 0
A20: DIFERENCIA | R20: =R18-R19 -> 0
A22: GENERALES MTTO Y REPARACIONES
A23: DESCRIPCION | B23: Q | C23: CONSULTA | D23: Q | E23: T. HUMANO - S. OCUPACIONAL | F23: Q | G23: MERCADEO Y SIAU | H23: Q | I23: FINANCIERA | J23: Q | K23: CALIDAD | L23: Q | M23: PROYECTOS | N23: Q | O23: DIR ADMINISTRATIVA | P23: Q | Q23: GERENCIA
A24: ADMINISTRACIÓN Y RECOLECCIÓN RESIDUOS CONSULTORIO 306 (EDIFICIO ICONO)
A25: ADMINISTRACIÓN Y RECOLECCIÓN RESIDUOS CONSULTORIO 312 (EDIFICIO ICONO)
A26: ADMINISTRACIÓN Y RECOLECCIÓN RESIDUOS CONSULTORIO 403 (EDIFICIO ICONO)
A27: ADMINISTRACIÓN Y RECOLECCIÓN RESIDUOS SALA DE JUNTAS 506 (EDIFICIO ICONO)
A28: ADMINISTRACIÓN Y RECOLECCIÓN RESIDUOS TERAPIA FISICA 507 (EDIFICIO ICONO)
A29: ARRENDAMIENTO Y ADMINISTRACIÓN CONSULTORIO 306 (BETANCURT FERNANDEZ JUAN CARLOS)
A30: ARRENDAMIENTO CONSULTORIO 312 (PIMIENTO VELASQUEZ ADRIANA)
A31: ARRENDAMIENTO Y ADMINISTRACIÓN CONSULTORIO 403 (BETANCURT FERNANDEZ JUAN CARLOS)
A32: ARRENDAMIENTO SALA DE JUNTAS 506 (ROJAS BOTERO SUSANA)
A33: ARRENDAMIENTO TERAPIA FISICA 507 (INMERCO)
A34: SERVICIO LAVANDERIA (DOCLEAN)
A35: SERVICIO ACUEDUCTO Y ALCANTARILLADO LOCAL 507, 403, 306, 312, 504, 506
A36: SERVICIO ENERGIA CONSULTORIOS 507, 403, 306, 312, 504, 506
A37: SERVICIO UNE
A38: TOTAL GENERALES ICONO | C38: =SUM(C24:C37) -> 0 | E38: =SUM(E24:E37) -> 0 | G38: =SUM(G24:G37) -> 0 | I38: =SUM(I24:I37) -> 0 | K38: =SUM(K24:K37) -> 0 | M38: =SUM(M24:M37) -> 0 | O38: =SUM(O24:O37) -> 0 | Q38: =SUM(Q24:Q37) -> 0 | R38: =SUM(C38:Q38) -> 0
A39: (-) EJECUCION PRESUPUESTAL DE ICONO EN MES ANTERIOR | R39: 0
A40: DIFERENCIA | R40: =R38-R39 -> 0
A42: TOTAL ICONO | C42: =C10+C38+C18 -> 0 | E42: =E10+E38+E18 -> 0 | G42: =G10+G38+G18 -> 0 | I42: =I10+I38+I18 -> 0 | K42: =K10+K38+K18 -> 0 | M42: =M10+M38+M18 -> 0 | O42: =O10+O38+O18 -> 0 | Q42: =Q10+Q38+Q18 -> 0 | R42: =SUM(C42:Q42) -> 0
A43: (-) EJECUCION PRESUPUESTAL DE ICONO EN MES ANTERIOR | R43: 0
A44: DIFERENCIA | R44: =R42-R43 -> 0

Sheet CASA ESPECIALISTAS
B1: NOMBRE EJECUCIÓN PRESUPUESTAL | H1: CÓDIGO 09-FT-030
B3: TIPO DE DOCUMENTO FORMATO | E3: PROCESO APOYO | H3: VERSIÓN 003
A5: FECHA: PRESUPUESTO A MES ACTUAL 2.021
A6: CAPEX Y/O ACTIVOS FIJOS
A7: DESCRIPCION | G7: Q | H7: CONSULTA
A10: TOTAL CAPEX Y/O ACTIVOS FIJOS CASA ESPECIALISTAS | H10: =SUM(H8:H9) -> 0 | I10: =H10 -> 0
A11: (-) EJECUCION PRESUPUESTAL DE CASA ESPECIALISTAS EN MES ANTERIOR | I11: 0
A12: DIFERENCIA | I12: =I10-I11 -> 0
A14: ADECUACIONES E INSTALACIONES
A15: DESCRIPCION | G15: Q | H15: CONSULTA
A18: TOTAL ADECUACIONES CASA ESPECIALISTAS | H18: =SUM(H16:H17) -> 0 | I18: =H18 -> 0
A19: (-) EJECUCION PRESUPUESTAL DE CASA ESPECIALISTAS EN MES ANTERIOR | I19: 0
A20: DIFERENCIA | I20: =I18-I19 -> 0
A22: GENERALES MTTO Y REPARACIONES
A23: DESCRIPCION | G23: Q | H23: CONSULTA
A26: TOTAL GENERALES CASA ESPECIALISTAS | H26: =SUM(H24:H25) -> 0 | I26: =+H26 -> 0
A27: (-) EJECUCION PRESUPUESTAL DE CASA ESPECIALISTAS EN MES ANTERIOR | I27: 0
A28: DIFERENCIA | I28: =I26-I27 -> 0
A30: TOTAL CASA ESPECIALISTAS | H30: =H10+H26+H18 -> 0 | I30: =+H30 -> 0
A31: (-) EJECUCION PRESUPUESTAL DE CASA ESPECIALISTAS EN MES ANTERIOR | I31: 0
A32: DIFERENCIA | I32: =I30-I31 -> 0

Sheet LA REBECA
B1: NOMBRE EJECUCIÓN PRESUPUESTAL | U1: CÓDIGO 09-FT-030
B3: TIPO DE DOCUMENTO FORMATO | J3: PROCESO APOYO | U3: VERSIÓN 003
A5: FECHA: PRESUPUESTO A MES ACTUAL 2.021
A6: CAPEX Y/O ACTIVOS FIJOS
A7: DESCRIPCION | B7: Q | C7: CONSULTA | D7: Q | E7: PROG. CX | F7: Q | G7: T. HUMANO - S. OCUPACIONAL | H7: Q | I7: MERCADEO Y SIAU | J7: Q | K7: FINANCIERA | L7: Q | M7: CALIDAD | N7: Q | O7: PROYECTOS | P7: Q | Q7: DIR MEDICA / CIENTIFICA | R7: Q | S7: DIR ADMINISTRATIVA | T7: Q | U7: GERENCIA
A10: TOTAL CAPEX Y/O ACTIVOS FIJOS LA REBECA | C10: =SUM(C8:C9) -> 0 | E10: =SUM(E8:E9) -> 0 | G10: =SUM(G8:G9) -> 0 | I10: =SUM(I8:I9) -> 0 | K10: =SUM(K8:K9) -> 0 | M10: =SUM(M8:M9) -> 0 | O10: =SUM(O8:O9) -> 0 | Q10: =SUM(Q8:Q9) -> 0 | S10: =SUM(S8:S9) -> 0 | U10: =SUM(U8:U9) -> 0 | V10: =SUM(C10:U10) -> 0
A11: (-) EJECUCION PRESUPUESTAL DE LA REBECA EN MES ANTERIOR | V11: 0
A12: DIFERENCIA | V12: =V10-V11 -> 0
A14: ADECUACIONES E INSTALACIONES
A15: DESCRIPCION | B15: Q | C15: CONSULTA | D15: Q | E15: PROG. CX | F15: Q | G15: T. HUMANO - S. OCUPACIONAL | H15: Q | I15: MERCADEO Y SIAU | J15: Q | K15: FINANCIERA | L15: Q | M15: CALIDAD | N15: Q | O15: PROYECTOS | P15: Q | Q15: DIR MEDICA / CIENTIFICA | R15: Q | S15: DIR ADMINISTRATIVA | T15: Q | U15: GERENCIA
A18: TOTAL ADECUACIONES LA REBECA | C18: =SUM(C16:C17) -> 0 | E18: =SUM(E16:E17) -> 0 | G18: =SUM(G16:G17) -> 0 | I18: =SUM(I16:I17) -> 0 | K18: =SUM(K16:K17) -> 0 | M18: =SUM(M16:M17) -> 0 | O18: =SUM(O16:O17) -> 0 | Q18: =SUM(Q16:Q17) -> 0 | S18: =SUM(S16:S17) -> 0 | U18: =SUM(U16:U17) -> 0 | V18: =SUM(C18:U18) -> 0
A19: (-) EJECUCION PRESUPUESTAL DE LA REBECA EN MES ANTERIOR | V19: 0
A20: DIFERENCIA | V20: =V18-V19 -> 0
A22: GENERALES MTTO Y REPARACIONES
A23: DESCRIPCION | B23: Q | C23: CONSULTA | D23: Q | E23: PROG. CX | F23: Q | G23: T. HUMANO - S. OCUPACIONAL | H23: Q | I23: MERCADEO Y SIAU | J23: Q | K23: FINANCIERA | L23: Q | M23: CALIDAD | N23: Q | O23: PROYECTOS | P23: Q | Q23: DIR MEDICA / CIENTIFICA | R23: Q | S23: DIR ADMINISTRATIVA | T23: Q | U23: GERENCIA
A24: SERVICIO ACUEDUCTO Y ALCANTARILLADO
A25: TOTAL GENERALES LA REBECA | C25: =SUM(C24:C24) -> 0 | E25: =SUM(E24:E24) -> 0 | G25: =SUM(G24:G24) -> 0 | I25: =SUM(I24:I24) -> 0 | K25: =SUM(K24:K24) -> 0 | M25: =SUM(M24:M24) -> 0 | O25: =SUM(O24:O24) -> 0 | Q25: =SUM(Q24:Q24) -> 0 | S25: =SUM(S24:S24) -> 0 | U25: =SUM(U24:U24) -> 0 | V25: =SUM(C25:U25) -> 0
A26: (-) EJECUCION PRESUPUESTAL DE LA REBECA EN MES ANTERIOR | V26: 0
A27: DIFERENCIA | V27: =V25-V26 -> 0
A29: TOTAL LA REBECA | C29: =C10+C25+C18 -> 0 | E29: =E10+E25+E18 -> 0 | G29: =G10+G25+G18 -> 0 | I29: =I10+I25+I18 -> 0 | K29: =K10+K25+K18 -> 0 | M29: =M10+M25+M18 -> 0 | O29: =O10+O25+O18 -> 0 | Q29: =Q10+Q25+Q18 -> 0 | S29: =S10+S25+S18 -> 0 | U29: =U10+U25+U18 -> 0 | V29: =SUM(C29:U29) -> 0
A30: (-) EJECUCION PRESUPUESTAL DE LA REBECA EN MES ANTERIOR | V30: 0
A31: DIFERENCIA | V31: =V29-V30 -> 0

Sheet CARTAGO
B1: NOMBRE EJECUCIÓN PRESUPUESTAL | H1: CÓDIGO 09-FT-030
B3: TIPO DE DOCUMENTO FORMATO | E3: PROCESO APOYO | H3: VERSIÓN 003
A5: FECHA: PRESUPUESTO A MES ACTUAL 2.021
A6: CAPEX Y/O ACTIVOS FIJOS
A7: DESCRIPCION | G7: Q | H7: CONSULTA
A10: TOTAL CAPEX Y/O ACTIVOS FIJOS CARTAGO | H10: =SUM(H8:H9) -> 0 | I10: =H10 -> 0
A11: (-) EJECUCION PRESUPUESTAL DE CARTAGO EN MES ANTERIOR | I11: 0
A12: DIFERENCIA | I12: =I10-I11 -> 0
A14: ADECUACIONES E INSTALACIONES
A15: DESCRIPCION | G15: Q | H15: CONSULTA
A18: TOTAL ADECUACIONES CARTAGO | H18: =SUM(H16:H17) -> 0 | I18: =H18 -> 0
A19: (-) EJECUCION PRESUPUESTAL DE CARTAGO EN MES ANTERIOR | I19: 0
A20: DIFERENCIA | I20: =I18-I19 -> 0
A22: GENERALES MTTO Y REPARACIONES
A23: DESCRIPCION | G23: Q | H23: CONSULTA
A26: TOTAL GENERALES CARTAGO | H26: =SUM(H24:H25) -> 0 | I26: =+H26 -> 0
A27: (-) EJECUCION PRESUPUESTAL DE CARTAGO EN MES ANTERIOR | I27: 0
A28: DIFERENCIA | I28: =I26-I27 -> 0
A30: TOTAL CARTAGO | H30: =H10+H26+H18 -> 0 | I30: =+H30 -> 0
A31: (-) EJECUCION PRESUPUESTAL DE CARTAGO EN MES ANTERIOR | I31: 0
A32: DIFERENCIA | I32: =I30-I31 -> 0

Sheet ÁLAMOS
B1: NOMBRE EJECUCIÓN PRESUPUESTAL | E1: CÓDIGO 09-FT-030
B3: TIPO DE DOCUMENTO FORMATO | D3: PROCESO APOYO | E3: VERSIÓN 003
A5: FECHA: PRESUPUESTO A MES ACTUAL 2.021
A6: CAPEX Y/O ACTIVOS FIJOS
A7: DESCRIPCION | B7: Q | C7: CONSULTA | D7: Q | E7: FACT Y CTAS MEDICAS
A10: TOTAL CAPEX Y/O ACTIVOS FIJOS ÁLAMOS | C10: =SUM(C8:C9) -> 0 | E10: =SUM(E8:E9) -> 0 | F10: =SUM(C10:E10) -> 0
A11: (-) EJECUCION PRESUPUESTAL DE ÁLAMOS EN MES ANTERIOR | F11: 0
A12: DIFERENCIA | F12: =F10-F11 -> 0
A14: ADECUACIONES E INSTALACIONES
A15: DESCRIPCION | B15: Q | C15: CONSULTA | D15: Q | E15: FACT Y CTAS MEDICAS
A18: TOTAL ADECUACIONES ÁLAMOS | C18: =SUM(C16:C17) -> 0 | E18: =SUM(E16:E17) -> 0 | F18: =SUM(C18:E18) -> 0
A19: (-) EJECUCION PRESUPUESTAL DE ÁLAMOS EN MES ANTERIOR | F19: 0
A20: DIFERENCIA | F20: =F18-F19 -> 0
A22: GENERALES MTTO Y REPARACIONES
A23: DESCRIPCION | B23: Q | C23: CONSULTA | D23: Q | E23: FACT Y CTAS MEDICAS
A24: ARRENDAMIENTO LOCAL (CHAVEZ MARQUEZ LUIS FERNANDO) | B24: 0.5526 | D24: 0.4474
A25: SERVICIO ACUEDUCTO Y ALCANTARILLADO | B25: 0.5526 | D25: 0.4474
A26: SERVICIO DE MONITOREO (SEGURIDAD NACIONAL LTDA) | B26: 0.5526 | D26: 0.4474
A27: SERVICIO ENERGIA | B27: 0.5526 | D27: 0.4474
A28: SERVICIO LAVANDERIA (DOCLEAN)
A29: SERVICIO REPARACIÓN ESCANER (COMPUWARE) OC 5437 - 5693
A30: SERVICIO UNE | B30: 0.5526 | D30: 0.4474
A31: CAJA GENERAL
A32: TOTAL GENERALES ÁLAMOS | C32: =SUM(C24:C31) -> 0 | E32: =SUM(E24:E31) -> 0 | F32: =SUM(C32:E32) -> 0
A33: (-) EJECUCION PRESUPUESTAL DE ÁLAMOS EN MES ANTERIOR | F33: 0
A34: DIFERENCIA | F34: =F32-F33 -> 0
A36: TOTAL ÁLAMOS | C36: =C10+C32+C18 -> 0 | E36: =E10+E32+E18 -> 0 | F36: =SUM(C36:E36) -> 0
A37: (-) EJECUCION PRESUPUESTAL DE ÁLAMOS EN MES ANTERIOR | F37: 0
A38: DIFERENCIA | F38: =F36-F37 -> 0

Sheet ARMENIA
B1: NOMBRE EJECUCIÓN PRESUPUESTAL | H1: CÓDIGO 09-FT-030
B3: TIPO DE DOCUMENTO FORMATO | E3: PROCESO APOYO | H3: VERSIÓN 003
A5: FECHA: PRESUPUESTO A MES ACTUAL 2.021
A6: CAPEX Y/O ACTIVOS FIJOS
A7: DESCRIPCION | G7: Q | H7: CONSULTA | I7: Q | J7: ONCOLOGIA
A10: TOTAL CAPEX Y/O ACTIVOS FIJOS ARMENIA | H10: =SUM(H8:H9) -> 0 | J10: =SUM(J8:J9) -> 0 | K10: =+SUM(H10:J10) -> 0
A11: (-) EJECUCION PRESUPUESTAL DE ARMENIA EN MES ANTERIOR | K11: 0
A12: DIFERENCIA | K12: =K10-K11 -> 0
A14: ADECUACIONES E INSTALACIONES
A15: DESCRIPCION | G15: Q | H15: CONSULTA | I15: Q | J15: ONCOLOGIA
A18: TOTAL ADECUACIONES ARMENIA | H18: =SUM(H16:H17) -> 0 | J18: =SUM(J16:J17) -> 0 | K18: =+SUM(H18:J18) -> 0
A19: (-) EJECUCION PRESUPUESTAL DE ARMENIA EN MES ANTERIOR | K19: 0
A20: DIFERENCIA | K20: =K18-K19 -> 0
A22: GENERALES MTTO Y REPARACIONES
A23: DESCRIPCION | G23: Q | H23: CONSULTA | I23: Q | J23: ONCOLOGIA
A24: ARRENDAMIENTO SEDE (PEREZ PELAEZ CARLOS ALBERTO)
A25: ADMINISTRACIÓN SEDE NOGALES (EDIFICIO NOGALES)
A26: SERVICIO ACUEDUCTO Y ALCANTARILLADO (EMPRESAS PUBLICAS DE ARMENIA)
A27: SERVICIO INTERNET Y LINEA TELEFONICA (COLOMBIA TELECOMUNICACIONES - UNE)
A28: CAJA GENERAL
A29: TOTAL GENERALES ARMENIA | H29: =SUM(H24:H28) -> 0 | J29: =SUM(J24:J28) -> 0 | K29: =+SUM(H29:J29) -> 0
A30: (-) EJECUCION PRESUPUESTAL DE ARMENIA EN MES ANTERIOR | K30: 0
A31: DIFERENCIA | K31: =K29-K30 -> 0
A33: SUMINISTROS E INSUMOS
A34: DESCRIPCION | G34: Q | H34: CONSULTA | I34: Q | J34: ONCOLOGIA
A37: TOTAL SUMINISTROS E INSUMOS | H37: =SUM(H35:H36) -> 0 | J37: =SUM(J35:J36) -> 0 | K37: =+SUM(H37:J37) -> 0
A38: (-) EJECUCION PRESUPUESTAL DE ARMENIA EN MES ANTERIOR | K38: 0
A39: DIFERENCIA | K39: =K37-K38 -> 0
A41: TOTAL ARMENIA | H41: =H10+H29+H18+H37 -> 0 | J41: =J10+J29+J18+J37 -> 0 | K41: =+SUM(H41:J41) -> 0
A42: (-) EJECUCION PRESUPUESTAL DE ARMENIA EN MES ANTERIOR | K42: 0
A43: DIFERENCIA | K43: =K41-K42 -> 0

Sheet MANIZALES
B1: NOMBRE EJECUCIÓN PRESUPUESTAL | M1: CÓDIGO 09-FT-030
B3: TIPO DE DOCUMENTO FORMATO | F3: PROCESO APOYO | M3: VERSIÓN 003
A5: FECHA: PRESUPUESTO A MES ACTUAL 2.021
A6: CAPEX Y/O ACTIVOS FIJOS
A7: DESCRIPCION | B7: Q | C7: CONSULTA | D7: Q | E7: T. HUMANO - SALUD OCUP | F7: Q | G7: FARMACIA | H7: Q | I7: CIRUGÍA | J7: Q | K7: FACT Y CTAS MEDICAS | L7: Q | M7: ONCOLOGIA
A8: ADMINISTRACIÓN LOCALES (CRUZ ROJA COLOMBIANA) | B8: 0.25 | H8: 0.25 | L8: 0.5
A9: ARRENDAMIENTO LOCAL Y PISO 2 (CRUZ ROJA COLOMBIANA) | B9: 0.25 | H9: 0.25 | L9: 0.5
A10: TOTAL CAPEX Y/O ACTIVOS FIJOS MANIZALES | C10: =SUM(C8:C9) -> 0 | E10: =SUM(E8:E9) -> 0 | G10: =SUM(G8:G9) -> 0 | I10: =SUM(I8:I9) -> 0 | K10: =SUM(K8:K9) -> 0 | M10: =SUM(M8:M9) -> 0 | N10: =SUM(B10:M10) -> 0
A11: (-) EJECUCION PRESUPUESTAL DE MANIZALES EN MES ANTERIOR | N11: 0
A12: DIFERENCIA | N12: =N10-N11 -> 0
A14: ADECUACIONES E INSTALACIONES
A15: DESCRIPCION | B15: Q | C15: CONSULTA | E15: T. HUMANO - SALUD OCUP | F15: Q | G15: FARMACIA | H15: Q | I15: CIRUGÍA | J15: Q | K15: FACT Y CTAS MEDICAS | L15: Q | M15: ONCOLOGIA
A18: TOTAL ADECUACIONES MANIZALES | C18: =SUM(C16:C17) -> 0 | G18: =SUM(G16:G17) -> 0 | I18: =SUM(I16:I17) -> 0 | K18: =SUM(K16:K17) -> 0 | M18: =SUM(M16:M17) -> 0 | N18: =SUM(B18:M18) -> 0
A19: (-) EJECUCION PRESUPUESTAL DE MANIZALES EN MES ANTERIOR | N19: 0
A20: DIFERENCIA | N20: =N18-N19 -> 0
A22: GENERALES MTTO Y REPARACIONES
A23: DESCRIPCION | B23: Q | C23: CONSULTA | E23: T. HUMANO - SALUD OCUP | F23: Q | G23: FARMACIA | H23: Q | I23: CIRUGÍA | J23: Q | K23: FACT Y CTAS MEDICAS | L23: Q | M23: ONCOLOGIA
A24: ARRENDAMIENTO CONSULTORIO 306 - 312 EDIFICIO MULTIPLAZA (PRADA QUINTANA ALBA LUCIA)
A25: SERVICIO INTERNET (COMUNICACIÓN CELULAR)
A26: SERVICIO DE ENERGIA (CENTRAL HIDROELECTRICA DE CALDAS SA ESP) CONSULTORIO 312 - 306
A27: TOTAL GENERALES MANIZALES | C27: =SUM(C24:C26) -> 0 | G27: =SUM(G24:G26) -> 0 | I27: =SUM(I24:I26) -> 0 | K27: =SUM(K24:K26) -> 0 | M27: =SUM(M24:M26) -> 0 | N27: =SUM(B27:M27) -> 0
A28: (-) EJECUCION PRESUPUESTAL DE MANIZALES EN MES ANTERIOR | N28: 0
A29: DIFERENCIA | N29: =N27-N28 -> 0
A31: TOTAL MANIZALES | C31: =C10+C27+C18 -> 0 | E31: =E10+E27+E18 -> 0 | G31: =G10+G27+G18 -> 0 | I31: =I10+I27+I18 -> 0 | K31: =K10+K27+K18 -> 0 | M31: =M10+M27+M18 -> 0 | N31: =SUM(B31:M31) -> 0
A32: (-) EJECUCION PRESUPUESTAL DE MANIZALES EN MES ANTERIOR | N32: 0
A33: DIFERENCIA | N33: =N31-N32 -> 0

Sheet SERVICIOS PUBLICOS MEGACENTRO
B1: NOMBRE EJECUCIÓN PRESUPUESTAL | G1: CÓDIGO 09-FT-030
B3: TIPO DE DOCUMENTO FORMATO | D3: PROCESO APOYO | G3: VERSIÓN 002
A5: DATOS FINANCIEROS PARA LA EJECUCIÓN PRESUPUESTAL MEGACENTRO
A6: GASTOS POR CENTRO DE COSTOS
A7: FECHA: PRESUPUESTO MES ACTUAL 2.021
A9: ENERGIA ELÉCTRICA | E9: ACUEDUCTO Y ALCANTARILLADO
A10: VR. MES ACTUAL | B10: 0 | E10: VR. MES ACTUAL | F10: 0
A12: CENTROS DE COSTO (CC) | B12: % DISTRIB | C12: VR. POR C.C. | E12: CENTROS DE COSTO (CC) | F12: % DISTRIB | G12: VR. POR C.C.
A13: CIRUGIA | B13: 0.288 | C13: =$B$10*B13 -> 0 | E13: CIRUGIA | F13: 0.0635 | G13: =$F$10*F13 -> 0
A14: HOSPITALIZACIÓN | B14: 0.1153 | C14: 0 | E14: HOSPITALIZACIÓN | F14: 0.4175 | G14: 0
A15: UCI PEDIATRICA | B15: 0.1948 | C15: 0 | E15: UCI PEDIATRICA | F15: 0.0976 | G15: 0
A16: UCI | B16: 0.0773 | C16: 0 | E16: UCI | F16: 0.1335 | G16: 0
A17: ONCOLOGIA | B17: 0.0989 | C17: 0 | E17: ONCOLOGIA | F17: 0.0339 | G17: 0
A18: CONSULTA EXTERNA | B18: 0.0162 | C18: 0 | E18: CONSULTA EXTERNA | F18: 0.0069 | G18: 0
A19: SISTEMAS Y BIOMEDICO | B19: 0.0079 | C19: 0 | E19: SISTEMAS Y BIOMEDICO | F19: 0.0155 | G19: 0
A20: FARMACIA | B20: 0.0238 | C20: 0 | E20: FARMACIA | F20: 0.0233 | G20: 0
A21: BIOTECNOLOGIA | B21: 0.0075 | C21: 0 | E21: BIOTECNOLOGIA | F21: 0.0078 | G21: 0
A22: MANTENIMIENTO | B22: 0.0154 | C22: 0 | E22: MANTENIMIENTO | F22: 0.0311 | G22: 0
A23: URGENCIAS | B23: 0.1549 | C23: 0 | E23: URGENCIAS | F23: 0.1694 | G23: 0
A24: TOTAL | B24: =SUM(B13:B23) -> 1 | C24: =SUM(C13:C23) -> 0 | E24: TOTAL | F24: =SUM(F13:F23) -> 1 | G24: =SUM(G13:G23) -> 0
A26: GAS DOMICILIARIO (EFIGAS) | E26: RECOLECCIÓN DE RESIDUOS
A27: VR. MES ACTUAL | B27: 0 | E27: VR. MES ACTUAL | F27: 0
A29: CENTROS DE COSTO (CC) | B29: % DISTRIB | C29: VR. POR C.C. | E29: CENTROS DE COSTO (CC) | F29: % DISTRIB | G29: VR. POR C.C.
A30: CIRUGIA | C30: =$B$27*B30 -> 0 | E30: CIRUGIA | F30: 0.1897458401 | G30: =$F$27*F30 -> 0
A31: HOSPITALIZACIÓN | B31: 0.71 | C31: 0 | E31: HOSPITALIZACIÓN | F31: 0.4353804534 | G31: 0
A32: UCI PEDIATRICA | B32: 0 | C32: 0 | E32: UCI PEDIATRICA | F32: 0.04026144284 | G32: 0
A33: UCI | B33: 0.29 | C33: 0 | E33: UCI | F33: 0.1653250316 | G33: 0
A34: ONCOLOGIA | C34: 0 | E34: ONCOLOGIA | F34: 0.01897251915 | G34: 0
A35: CONSULTA EXTERNA | C35: 0 | E35: CONSULTA EXTERNA | F35: 0.009733706902 | G35: 0
A36: SISTEMAS Y BIOMEDICO | C36: 0 | E36: SISTEMAS Y BIOMEDICO | F36: 0.0003126329959 | G36: 0
A37: FARMACIA | C37: 0 | E37: FARMACIA | F37: 0.0003525651751 | G37: 0
A38: BIOTECNOLOGIA | E38: BIOTECNOLOGIA | F38: 0.0005307383161 | G38: 0
A39: MANTENIMIENTO | E39: MANTENIMIENTO | F39: 0.008392213165 | G39: 0
A40: URGENCIAS | E40: URGENCIAS | F40: 0.1309928564 | G40: 0
A41: TOTAL | B41: =SUM(B30:B35) -> 1 | C41: =SUM(C30:C37) -> 0 | E41: TOTAL | F41: =SUM(F30:F40) -> 1 | G41: =SUM(G30:G40) -> 0
A43: TELÉFONO FIJOS, INTERNET (PAQ UNE) | E43: CELULARES
A44: VR. MES ACTUAL | B44: 0 | E44: VR. MES ACTUAL | F44: =+G65 -> 0
A46: CENTROS DE COSTO (CC) | B46: % DISTRIB | C46: VR. POR C.C. | E46: CENTROS DE COSTO (CC) | G46: VR. POR C.C.
A47: CIRUGIA | B47: 0.060125 | C47: =$B$44*B47 -> 0 | E47: CIRUGIA
A48: HOSPITALIZACIÓN | B48: 0.383125 | C48: =$B$44*B48 -> 0 | E48: HOSPITALIZACIÓN
A49: UCI | B49: 0.064125 | C49: 0 | E49: UCI
A50: UCI PEDIATRICA | B50: 0.042125 | C50: 0 | E50: UCI PEDIATRICA
A51: ONCOLOGIA | B51: 0.044125 | C51: 0 | E51: ONCOLOGIA
A52: CONSULTA EXTERNA | C52: 0 | E52: CONSULTA EXTERNA
A53: FINANCIERA | B53: 0.013125 | C53: 0 | E53: FINANCIERA
A54: TALENTO HUMANO | B54: 0.028125 | C54: 0 | E54: TALENTO HUMANO
A55: SISTEMAS Y BIOMEDICO | B55: 0.028125 | C55: 0 | E55: SISTEMAS Y BIOMEDICO
A56: FARMACIA | B56: 0.022125 | C56: 0 | E56: FARMACIA
A57: FACTURACION Y CTAS M | B57: 0.118125 | C57: 0 | E57: FACTURACION Y CTAS M
A58: MERCADEO | B58: 0.033125 | C58: 0 | E58: MERCADEO
A59: BIOTECNOLOGIA | B59: 0.015125 | C59: 0 | E59: BIOTECNOLOGIA
A60: MANTENIMIENTO | B60: 0.030125 | C60: 0 | E60: MANTENIMIENTO
A61: URGENCIAS | B61: 0.095125 | C61: 0 | E61: URGENCIAS
A62: GERENCIA | B62: 0.000125 | C62: 0 | E62: GERENCIA
C63: 0 | E63: DIR. ADMINISTRATIVA
A64: DIR. MEDICA Y CIENTIFICA | B64: 0.023125 | C64: 0 | E64: DIR. MEDICA Y CIENTIFICA
A65: TOTAL | B65: =SUM(B47:B64) -> 1 | C65: =SUM(C47:C64) -> 0 | E65: TOTAL | G65: =SUM(G47:G64) -> 0

Sheet SERVICIOS PUBLICOS CUBA
B1: NOMBRE EJECUCIÓN PRESUPUESTAL | H1: CÓDIGO 09-FT-030
B3: TIPO DE DOCUMENTO FORMATO | E3: PROCESO APOYO | H3: VERSIÓN 002
A5: DATOS FINANCIEROS PARA LA EJECUCIÓN PRESUPUESTAL CUBA
A6: GASTOS POR CENTRO DE COSTOS
A7: FECHA: PRESUPUESTO MES ACTUAL 2.021
A9: ENERGIA ELÉCTRICA | F9: ACUEDUCTO Y ALCANTARILLADO
A10: VR. MES ACTUAL | C10: 0 | F10: VR. MES ACTUAL | G10: 0
A12: CENTROS DE COSTO (CC) | B12: CC | C12: % DISTRIB | D12: VR. POR C.C. | F12: CENTROS DE COSTO (CC) | G12: % DISTRIB | H12: VR. POR C.C.
A13: CIRUGIA | B13: 04 | C13: 0.27 | D13: =$C$10*C13 -> 0 | F13: CIRUGIA | G13: 0.27 | H13: =$G$10*G13 -> 0
A14: HOSPITALIZACIÓN | B14: 03 | C14: 0.3 | D14: 0 | F14: HOSPITALIZACIÓN | G14: 0.3 | H14: 0
A15: UCI | B15: 08 | C15: 0.21 | D15: 0 | F15: UCI | G15: 0.21 | H15: 0
A16: CONSULTA EXTERNA | B16: 02 | C16: 0.05 | D16: 0 | F16: CONSULTA EXTERNA | G16: 0.05 | H16: 0
A17: FINANCIERA | B17: 01 | C17: 0.01 | D17: 0 | F17: FINANCIERA | G17: 0.01 | H17: 0
A18: TALENTO HUMANO | B18: 12 | C18: 0.01 | D18: 0 | F18: TALENTO HUMANO | G18: 0.01 | H18: 0
A19: SISTEMAS Y BIOMEDICO | B19: 11 | C19: 0.01 | D19: 0 | F19: SISTEMAS Y BIOMEDICO | G19: 0.01 | H19: 0
A20: FARMACIA | B20: 07 | C20: 0.05 | D20: 0 | F20: FARMACIA | G20: 0.05 | H20: 0
A21: FACTURACION Y CTAS M | B21: 10 | C21: 0.05 | D21: 0 | F21: FACTURACION Y CTAS M | G21: 0.05 | H21: 0
A22: MERCADEO | B22: 17 | C22: 0.01 | D22: 0 | F22: MERCADEO | G22: 0.01 | H22: 0
A23: BIOTECNOLOGIA | B23: 11 | C23: 0.01 | D23: 0 | F23: BIOTECNOLOGIA | G23: 0.01 | H23: 0
A24: MANTENIMIENTO | B24: 13 | C24: 0.02 | D24: 0 | F24: MANTENIMIENTO | G24: 0.02 | H24: 0
A25: TOTAL | C25: =SUM(C13:C24) -> 1 | D25: =SUM(D13:D24) -> 0 | F25: TOTAL | G25: =SUM(G13:G24) -> 1 | H25: =SUM(H13:H24) -> 0
A27: GAS DOMICILIARIO (EFIGAS) | F27: RECOLECCIÓN DE RESIDUOS
A28: VR. MES ACTUAL | C28: 0 | F28: VR. MES ACTUAL | G28: 0
A30: CENTROS DE COSTO (CC) | C30: % DISTRIB | D30: VR. POR C.C. | F30: CENTROS DE COSTO (CC) | G30: % DISTRIB | H30: VR. POR C.C.
A31: CIRUGIA | D31: =$C$28*C31 -> 0 | F31: CIRUGIA | G31: 0.27 | H31: =$G$28*G31 -> 0
A32: HOSPITALIZACIÓN | C32: 0.71 | D32: 0 | F32: HOSPITALIZACIÓN | G32: 0.3 | H32: 0
A33: UCI | C33: 0.29 | D33: 0 | F33: UCI | G33: 0.21 | H33: 0
A34: CONSULTA EXTERNA | D34: 0 | F34: CONSULTA EXTERNA | G34: 0.05 | H34: 0
A35: FINANCIERA | D35: 0 | F35: FINANCIERA | G35: 0.01 | H35: 0
A36: TALENTO HUMANO | D36: 0 | F36: TALENTO HUMANO | G36: 0.01 | H36: 0
A37: SISTEMAS Y BIOMEDICO | D37: 0 | F37: SISTEMAS Y BIOMEDICO | G37: 0.01 | H37: 0
A38: FARMACIA | D38: 0 | F38: FARMACIA | G38: 0.05 | H38: 0
A39: FACTURACION Y CTAS M | D39: 0 | F39: FACTURACION Y CTAS M | G39: 0.05 | H39: 0
A40: MERCADEO | F40: MERCADEO | G40: 0.01 | H40: 0
A41: BIOTECNOLOGIA | F41: BIOTECNOLOGIA | G41: 0.01 | H41: 0
A42: MANTENIMIENTO | F42: MANTENIMIENTO | G42: 0.02 | H42: 0
A43: TOTAL | C43: =SUM(C31:C35) -> 1 | D43: =SUM(D31:D39) -> 0 | F43: TOTAL | G43: =SUM(G31:G42) -> 1 | H43: =SUM(H31:H42) -> 0
A45: TELÉFONO FIJOS, INTERNET (UNE ) | F45: CELULARES
A46: VR. MES ACTUAL | C46: 0 | F46: VR. MES ACTUAL | G46: =+H63 -> 0
A48: CENTROS DE COSTO (CC) | C48: % DISTRIB | D48: VR. POR C.C. | F48: CENTROS DE COSTO (CC) | G48: % DISTRIB | H48: VR. POR C.C.
A49: CIRUGIA | C49: 0.1433076923 | D49: =$C$46*C49 -> 0 | F49: CIRUGIA
A50: HOSPITALIZACIÓN | C50: 0.3853076923 | D50: 0 | F50: HOSPITALIZACIÓN
A51: UCI | C51: 0.07530769231 | D51: 0 | F51: UCI
A52: CONSULTA EXTERNA | C52: 0.1473076923 | D52: 0 | F52: CALL CENTER
A53: FINANCIERA | C53: 0.004307692308 | D53: 0 | F53: FINANCIERA
A54: TALENTO HUMANO | C54: 0.0003076923077 | D54: 0 | F54: TALENTO HUMANO
A55: SISTEMAS Y BIOMEDICO | C55: 0.02630769231 | D55: 0 | F55: SISTEMAS Y BIOMEDICO
A56: FARMACIA | C56: 0.03030769231 | D56: 0 | F56: FARMACIA
A57: FACTURACION Y CTAS M | C57: 0.04830769231 | D57: 0 | F57: FACTURACION Y CTAS M
A58: MERCADEO | C58: 0.01530769231 | D58: 0 | F58: MERCADEO
A59: BIOTECNOLOGIA | C59: 0.01530769231 | D59: 0 | F59: BIOTECNOLOGIA
A60: MANTENIMIENTO | C60: 0.04530769231 | D60: 0 | F60: MANTENIMIENTO
F61: URGENCIAS
A62: DIR. MEDICA | C62: 0.06330769231 | D62: 0 | F62: DIR. MEDICA
A63: TOTAL | C63: =SUM(C49:C62) -> 1 | D63: =SUM(D49:D62) -> 0 | F63: TOTAL | H63: =SUM(H49:H62) -> 0
A66: VIGILANCIA
A67: VR. MES ACTUAL | B67: 0
A69: CENTROS DE COSTO (CC) | B69: % DISTRIB | C69: VR. POR C.C.
A70: CIRUGIA | B70: 0.1111 | C70: =$B$67*B70 -> 0
A71: HOSPITALIZACIÓN | B71: 0.1111 | C71: 0
A72: UCI | B72: 0.1111 | C72: 0
A73: CONSULTA EXTERNA | B73: 0.1111 | C73: 0
A74: FINANCIERA | B74: 0.1111 | C74: 0
A75: TALENTO HUMANO | B75: 0.1111 | C75: 0
A76: ADMON DOCUMENT | B76: 0.1111 | C76: 0
A77: FARMACIA | B77: 0.1111 | C77: 0
A78: FACTURACION Y CTAS M | B78: 0.1111 | C78: 0
A79: TOTAL | B79: =SUM(B70:B78) -> 0.9999 | C79: 0

Sheet INSUMOS CUBA
C1: NOMBRE EJECUCIÓN PRESUPUESTAL | F1: CÓDIGO 09-FT-030
C3: TIPO DE DOCUMENTO FORMATO | E3: PROCESO APOYO | F3: VERSIÓN 002
A5: INSUMOS MES ACTUAL 2.021
A6: No. | B6: Proveedor | C6: Valor total compras mes | D6: Valor total compras mes | E6: Variación absoluta | F6: Variación porcentual
A7: 1 | B7: COLMEDIKS | E7: =D7-C7 -> 0 | F7: =IFERROR((D7-C7)/C7,) -> 0
A8: 2 | B8: EVE DISTRIBUCIONES S.A.S | E8: =D8-C8 -> 0 | F8: =IFERROR((D8-C8)/C8,) -> 0
A9: 3 | B9: GE HEALTHCARE | E9: =D9-C9 -> 0 | F9: =IFERROR((D9-C9)/C9,) -> 0
A10: TOTAL | C10: =SUM(C7:C9) -> 0 | D10: =SUM(D7:D9) -> 0 | E10: =SUM(E7:E9) -> 0 | F10: =IFERROR((D10-C10)/C10,) -> 0

Sheet HEMODINAMIA
C1: NOMBRE EJECUCIÓN PRESUPUESTAL | F1: CÓDIGO 09-FT-030
C3: TIPO DE DOCUMENTO FORMATO | E3: PROCESO APOYO | F3: VERSIÓN 002
A5: INSUMOS MES ACTUAL 2.021
A6: No. | B6: Proveedor | C6: Valor total compras mes | D6: Valor total compras mes | E6: Variación absoluta | F6: Variación porcentual
A7: 1 | B7: BOSTON SCIENTIFIC COLOMBIA LTDA. | E7: =D7-C7 -> 0 | F7: =IFERROR((D7-C7)/C7,) -> 0
A8: 2 | B8: INTERVENTIONAL MEDICAL PRODUCTS | E8: 0 | F8: 0
A9: 3 | B9: MEDTRONIC COLOMBIA S.A. | E9: 0 | F9: 0
A10: 4 | B10: SPECIAL PRODUCTS SURGERY | E10: 0 | F10: 0
A11: 5 | B11: ST JUDE MEDICAL COLOMBIA LTDA | E11: 0 | F11: 0
A12: 6 | B12: TERUMO | E12: 0 | F12: 0
A13: TOTAL | C13: =SUM(C7:C12) -> 0 | D13: =SUM(D7:D12) -> 0 | E13: 0 | F13: =IFERROR((D13-C13)/C13,) -> 0

Sheet INSUMOS MEGACENTRO
C1: NOMBRE EJECUCIÓN PRESUPUESTAL | F1: CÓDIGO 09-FT-030
C3: TIPO DE DOCUMENTO FORMATO | E3: PROCESO APOYO | F3: VERSIÓN 002
A5: INSUMOS MES ACTUAL 2.021
A6: No. | B6: Proveedor | C6: Valor total compras mes | D6: Valor total compras mes | E6: Variación absoluta | F6: Variación porcentual
A7: 1 | B7: AUDIFARMA | E7: =D7-C7 -> 0 | F7: =IFERROR((D7-C7)/C7,) -> 0 | H7: CONTABILIZACION FACTURAS AUDIFARMA, HOSPILARTE
A8: 2 | B8: HOSPITALARTE | E8: 0 | F8: 0 | H8: AREA DE GASTO | I8: % DE GASTO | J8: VALOR GASTO
A9: 3 | B9: AMAREY NOVA MEDICAL | E9: 0 | F9: 0 | H9: CONSULTA | I9: 0.01 | J9: =($D$7+$D$8)*I9 -> 0
A10: 4 | B10: ANNAR DIAGNOSTICA IMPORT SAS | E10: 0 | F10: 0 | H10: AOPOYO DIAG | I10: 0.01 | J10: 0
A11: 5 | B11: BAYER | E11: 0 | F11: 0 | H11: HOSPITALIZACION | I11: 0.15 | J11: 0
A12: 6 | B12: BIOTECH HEALTH CARE | E12: 0 | F12: 0 | H12: UCI | I12: 0.15 | J12: 0
A13: 7 | B13: BRAUN | E13: 0 | F13: 0 | H13: CIRUGIA | I13: 0.2 | J13: 0
A14: 8 | B14: COBO MEDICAL SAS | E14: 0 | F14: 0 | H14: URGENCIA | I14: 0.1 | J14: 0
A15: 9 | B15: CRISTIAN PLAST | E15: 0 | F15: 0 | H15: NEONATOS | I15: 0.08 | J15: 0
A16: 10 | B16: DEKORA CASA | E16: 0 | F16: 0 | H16: ONCOLOGIA | I16: 0.2 | J16: 0
A17: 11 | B17: DISMECOL | E17: 0 | F17: 0 | H17: GINECO OBSTETRICIA | I17: 0.1 | J17: 0
A18: 12 | B18: DISTRIBUCIONES MVM | E18: 0 | F18: 0 | H18: TOTAL | I18: =SUM(I9:I17) -> 1 | J18: =SUM(J9:J17) -> 0
A19: 13 | B19: DISTRICLINICOS S.A.S. | E19: 0 | F19: 0
A20: 14 | B20: EPM SOLUCIONES | E20: 0 | F20: 0
A21: 15 | B21: G BARCO SA | E21: 0 | F21: 0
A22: 16 | B22: HOSPITECNICA
A23: 17 | B23: LABORATORIOS BETHEL | E23: =D23-C23 -> 0 | F23: =IFERROR((D23-C23)/C23,) -> 0
A24: 18 | B24: LABORATORIOS RETINA | E24: 0 | F24: 0
A25: 19 | B25: LIVANOVA | E25: =D25-C25 -> 0 | F25: =IFERROR((D25-C25)/C25,) -> 0
A26: 20 | B26: MEDICAL PHARMA | E26: =D26-C26 -> 0 | F26: =IFERROR((D26-C26)/C26,) -> 0
A27: 21 | B27: MEDINISTROS | E27: =D27-C27 -> 0 | F27: =IFERROR((D27-C27)/C27,) -> 0
A28: 22 | B28: MICROGEN | E28: 0 | F28: 0
A29: 23 | B29: PROQUILAB | E29: 0 | F29: 0
A30: 24 | B30: QUIMICOS PEREIRA
A31: 25 | B31: REMEDYHOS (HECTOR CARDENAS ARTEAGA) | E31: 0 | F31: 0
A32: 26 | B32: REPRESENTACIONES MEDICO QUIRURGICAS | E32: 0 | F32: 0
A33: 27 | B33: ROMANOS AGENCY | E33: 0 | F33: 0
A34: 28 | B34: RP MEDICAS | E34: 0 | F34: 0
A35: 29 | B35: SERBIOTRONICA | E35: 0 | F35: 0
A36: 30 | B36: UNION MEDICAL SAS | E36: 0 | F36: 0
A37: 31 | B37: VISION MEDICA COLOMBIA | E37: 0 | F37: 0
A38: TOTAL | C38: =SUM(C7:C36) -> 0 | D38: =SUM(D7:D36) -> 0 | E38: 0 | F38: 0

Sheet OSTEOSINTESIS
C1: NOMBRE EJECUCIÓN PRESUPUESTAL | F1: CÓDIGO 09-FT-030
C3: TIPO DE DOCUMENTO FORMATO | E3: PROCESO APOYO | F3: VERSIÓN 002
A5: INSUMOS MES ACTUAL 2.021
A6: No. | B6: Proveedor | C6: Valor total compras mes | D6: Valor total compras mes | E6: Variación absoluta | F6: Variación porcentual
A7: 1 | B7: DRUG STORE | E7: =D7-C7 -> 0 | F7: =IFERROR((D7-C7)/C7,) -> 0
A8: 2 | B8: JOHNSON & JOHNSON | E8: 0 | F8: 0
A9: 3 | B9: LH SAS | E9: 0 | F9: 0
A10: 4 | B10: MEDIHUMANA | E10: 0 | F10: 0
A11: 5 | B11: MEDIREX S.A.S | E11: 0 | F11: 0
A12: 6 | B12: TISSUE BANK | E12: 0 | F12: 0
A13: TOTAL | C13: =SUM(C7:C12) -> 0 | D13: =SUM(D7:D12) -> 0 | E13: =D13-C13 -> 0 | F13: =IFERROR((D13-C13)/C13,) -> 0

Sheet SERVICIOS PUBLICOS (2) (hidden)
B1: NOMBRE | H1: CODIGO
B2: DATOS FINANCIEROS PARA LA EJECUCIÓN PRESUPUESTAL | H2: 09-FT-004
H3: VERSION
B4: TIPO DOCUMENTO | F4: ÁREA RESPONSABLE | H4: 1
B5: FORMATO | F5: CONTABILIDAD Y TESORERÍA | H5: FECHA VIGENCIA
H6: 2012-03-29
A7: DATOS FINANCIEROS PARA LA EJECUCIÓN PRESUPUESTAL
A8: GASTOS POR CENTRO DE COSTOS
A9: NOVIEMBRE DE 2013
A11: ENERGIA ELÉCTRICA | F11: ACUEDUCTO Y ALCANTARILLADO
A12: VR. NOVIEMBRE | C12: 9840855 | F12: VR. NOVIEMBRE | G12: 1362232
A14: CENTROS DE COSTO (CC) | B14: CC | C14: % DISTRIB | D14: VR. POR C.C. | F14: CENTROS DE COSTO (CC) | G14: % DISTRIB | H14: VR. POR C.C.
A15: CIRUGIA | B15: 04 | C15: 0.5 | D15: =$C$12*C15 -> 4920427.5 | F15: CIRUGIA | G15: 0.5 | H15: =$G$12*G15 -> 681116
A16: HOSPITALIZACIÓN | B16: 03 | C16: 0.25 | D16: 2460213.75 | F16: HOSPITALIZACIÓN | G16: 0.25 | H16: 340558
A17: UCI | B17: 08 | C17: 0.1 | D17: 984085.5 | F17: UCI | G17: 0.1 | H17: 136223.2
A18: CONSULTA EXTERNA | B18: 02 | C18: 0.05 | D18: 492042.75 | F18: CONSULTA EXTERNA | G18: 0.05 | H18: 68111.6
A19: FINANCIERA | B19: 01 | C19: 0.02 | D19: 196817.1 | F19: FINANCIERA | G19: 0.02 | H19: 27244.64
A20: TALENTO HUMANO | B20: 12 | C20: 0.02 | D20: 196817.1 | F20: TALENTO HUMANO | G20: 0.02 | H20: 27244.64
A21: ADMON DOCUMENT | B21: 11 | C21: 0.01 | D21: 98408.55 | F21: ADMON DOCUMENT | G21: 0.01 | H21: 13622.32
A22: FARMACIA | B22: 07 | C22: 0.02 | D22: 196817.1 | F22: FARMACIA | G22: 0.02 | H22: 27244.64
A23: FACTURACION Y CTAS M | B23: 10 | C23: 0.02 | D23: 196817.1 | F23: FACTURACION Y CTAS M | G23: 0.02 | H23: 27244.64
A24: TOTAL | C24: =SUM(C15:C23) -> 0.99 | D24: =SUM(D15:D23) -> 9742446.45 | F24: TOTAL | G24: =SUM(G15:G23) -> 0.99 | H24: =SUM(H15:H23) -> 1348609.68
A27: GAS DOMICILIARIO (EFIGAS) | F27: RECOLECCIÓN DE RESIDUOS
A28: VR. NOVIEMBRE | C28: 159692 | F28: VR. NOVIEMBRE | G28: 2954441
A30: CENTROS DE COSTO (CC) | C30: % DISTRIB | D30: VR. POR C.C. | F30: CENTROS DE COSTO (CC) | G30: % DISTRIB | H30: VR. POR C.C.
A31: CIRUGIA | D31: =$C$28*C31 -> 0 | F31: CIRUGIA | G31: 0.45 | H31: =$G$28*G31 -> 1329498.45
A32: HOSPITALIZACIÓN | C32: 0.71 | D32: 113381.32 | F32: HOSPITALIZACIÓN | G32: 0.2 | H32: 590888.2
A33: UCI | C33: 0.29 | D33: 46310.68 | F33: UCI | G33: 0.2 | H33: 590888.2
A34: CONSULTA EXTERNA | D34: 0 | F34: CONSULTA EXTERNA | G34: 0.05 | H34: 147722.05
A35: FINANCIERA | D35: 0 | F35: FINANCIERA | G35: 0.02 | H35: 59088.82
A36: TALENTO HUMANO | D36: 0 | F36: TALENTO HUMANO | G36: 0.02 | H36: 59088.82
A37: ADMON DOCUMENT | D37: 0 | F37: ADMON DOCUMENT | G37: 0.01 | H37: 29544.41
A38: FARMACIA | D38: 0 | F38: FARMACIA | G38: 0.02 | H38: 59088.82
A39: FACTURACION Y CTAS M | D39: 0 | F39: FACTURACION Y CTAS M | G39: 0.02 | H39: 59088.82
A40: TOTAL | C40: =SUM(C31:C35) -> 1 | D40: =SUM(D31:D39) -> 159692 | F40: TOTAL | G40: =SUM(G31:G39) -> 0.99 | H40: =SUM(H31:H39) -> 2924896.59
A43: TELÉFONO FIJOS, INTERNET (PAQ UNE) | F43: CELULARES
A44: VR. NOVIEMBRE | C44: 2310278 | F44: VR. NOVIEMBRE | G44: 252668
A46: CENTROS DE COSTO (CC) | C46: % DISTRIB | D46: VR. POR C.C. | F46: CENTROS DE COSTO (CC) | G46: % DISTRIB | H46: VR. POR C.C.
A47: CIRUGIA | C47: 0.15 | D47: =$C$44*C47 -> 346541.7 | F47: CIRUGIA | G47: 0.5 | H47: =$G$44*G47 -> 126334
A48: HOSPITALIZACIÓN | C48: 0.125 | D48: 288784.75 | F48: HOSPITALIZACIÓN | G48: 0.1 | H48: 25266.8
A49: UCI | C49: 0.125 | D49: 288784.75 | F49: UCI | G49: 0.1 | H49: 25266.8
A50: CONSULTA EXTERNA | C50: 0.5 | D50: 1155139 | F50: CONSULTA EXTERNA | G50: 0.15 | H50: 37900.2
A51: FINANCIERA | C51: 0.02 | D51: 46205.56 | F51: FINANCIERA | G51: 0.03 | H51: 7580.04
A52: TALENTO HUMANO | C52: 0.02 | D52: 46205.56 | F52: TALENTO HUMANO | G52: 0.03 | H52: 7580.04
A53: ADMON DOCUMENT | C53: 0.01 | D53: 23102.78 | F53: ADMON DOCUMENT | G53: 0.015 | H53: 3790.02
A54: FARMACIA | C54: 0.02 | D54: 46205.56 | F54: FARMACIA | G54: 0.03 | H54: 7580.04
A55: FACTURACION Y CTAS M | C55: 0.02 | D55: 46205.56 | F55: FACTURACION Y CTAS M | G55: 0.03 | H55: 7580.04
A56: TOTAL | C56: =SUM(C47:C51) -> 0.92 | D56: =SUM(D47:D55) -> 2287175.22 | F56: TOTAL | G56: =SUM(G47:G55) -> 0.985 | H56: =SUM(H47:H55) -> 248877.98
A59: VIGILANCIA
A60: VR. NOVIEMBRE | B60: 0
A62: CENTROS DE COSTO (CC) | B62: % DISTRIB | C62: VR. POR C.C.
A63: CIRUGIA | B63: 0.1111 | C63: =$B$60*B63 -> 0
A64: HOSPITALIZACIÓN | B64: 0.1111 | C64: 0
A65: UCI | B65: 0.1111 | C65: 0
A66: CONSULTA EXTERNA | B66: 0.1111 | C66: 0
A67: FINANCIERA | B67: 0.1111 | C67: 0
A68: TALENTO HUMANO | B68: 0.1111 | C68: 0
A69: ADMON DOCUMENT | B69: 0.1111 | C69: 0
A70: FARMACIA | B70: 0.1111 | C70: 0
A71: FACTURACION Y CTAS M | B71: 0.1111 | C71: 0
A72: TOTAL | B72: =SUM(B63:B71) -> 0.9999 | C72: 0
